{"text_format":"1","workbook":"xlsx","n_sheets":3,"sheets":["كشف","خلاصة شهر","خلاصة نهائية"],"not_rendered":{"charts":0,"images":0,"macros":1,"external_links":0,"defined_names":16,"comments":0,"pivot_tables":0},"unopened":[],"bounds":{"document_bytes":16777216,"sheet_cells":100000,"rows_first":2000,"rows_last":500,"rows_between":2000,"halvings":0,"cell_chars":16384,"cell_head_chars":4096},"cells_cut":0,"cells_raw":0,"read":"whole","date_system":"1900"}

{"sheet":"كشف","index":0,"n_rows":73,"n_cols":51,"rows_kept":73,"cut":false,"hidden":false,"merged":[[4,38,4,41],[0,0,0,37],[1,0,1,21],[4,0,6,0],[4,1,6,1],[2,27,2,32],[1,23,1,26],[2,23,2,26],[3,23,3,26],[3,8,3,11],[3,27,3,32],[4,2,4,32],[4,33,4,37],[1,27,1,32]]}
[null,null,null,null,null,null,null,null,null,null,null,null,null,null,null,null,null,null,null,null,null,null,null,null,null,null,null,null,null,null,null,null,null,null,null,null,null,null,null,null,null,null,null,null,null,1,null,2022,"عرضية ","السبت","يناير"]
[null,null,null,null,null,null,null,null,null,null,null,null,null,null,null,null,null,null,null,null,null,null,null,"أسماء المعلمين",null,null,null,null,null,null,null,null,null,null,null,null,null,null,null,null,null,null,null,null,null,2,null,2023,"مرضية ","الأحد","فبراير"]
[null,null,null,null,null,null,null,null,null,null,null,null,null,null,null,null,null,null,null,null,null,null,null,"الشهر ","الشهر",null,null,"ديسمبر",null,null,null,null,null,null,null,null,null,null,null,null,null,null,null,null,null,3,null,2024,"سنوية ","الإثنين","مارس"]
[null,null,null,null,null,null,null,null,null,null,null,null,null,null,null,null,null,null,null,null,null,null,null,"السنة ","السنة",null,null,2023,null,null,null,null,null,null,null,null,null,null,null,null,null,null,null,null,null,4,null,2025,"عدم صرف","الثلاثاء","أبريل"]
["ت","الاسم ",null,null,null,null,null,null,null,null,null,null,null,null,null,null,null,null,null,null,null,null,null,null,null,null,null,null,null,null,null,null,null,"المجموع الاجازات ",null,null,null,null,"العقوبات ",null,null,null,null,null,null,5,null,2026,"تنبيه","الأربعاء","مايو"]
[null,null,{"$f":"IF(C7=\"\",\"\",INDEX($AX$1:$AX$7,WEEKDAY(C7,16)))","v":"الجمعة"},{"$f":"IF(D7=\"\",\"\",INDEX($AX$1:$AX$7,WEEKDAY(D7,16)))","v":"السبت"},{"$f":"IF(E7=\"\",\"\",INDEX($AX$1:$AX$7,WEEKDAY(E7,16)))","v":"الأحد"},{"$f":"IF(F7=\"\",\"\",INDEX($AX$1:$AX$7,WEEKDAY(F7,16)))","v":"الإثنين"},{"$f":"IF(G7=\"\",\"\",INDEX($AX$1:$AX$7,WEEKDAY(G7,16)))","v":"الثلاثاء"},{"$f":"IF(H7=\"\",\"\",INDEX($AX$1:$AX$7,WEEKDAY(H7,16)))","v":"الأربعاء"},{"$f":"IF(I7=\"\",\"\",INDEX($AX$1:$AX$7,WEEKDAY(I7,16)))","v":"الخميس"},{"$f":"IF(J7=\"\",\"\",INDEX($AX$1:$AX$7,WEEKDAY(J7,16)))","v":"الجمعة"},{"$f":"IF(K7=\"\",\"\",INDEX($AX$1:$AX$7,WEEKDAY(K7,16)))","v":"السبت"},{"$f":"IF(L7=\"\",\"\",INDEX($AX$1:$AX$7,WEEKDAY(L7,16)))","v":"الأحد"},{"$f":"IF(M7=\"\",\"\",INDEX($AX$1:$AX$7,WEEKDAY(M7,16)))","v":"الإثنين"},{"$f":"IF(N7=\"\",\"\",INDEX($AX$1:$AX$7,WEEKDAY(N7,16)))","v":"الثلاثاء"},{"$f":"IF(O7=\"\",\"\",INDEX($AX$1:$AX$7,WEEKDAY(O7,16)))","v":"الأربعاء"},{"$f":"IF(P7=\"\",\"\",INDEX($AX$1:$AX$7,WEEKDAY(P7,16)))","v":"الخميس"},{"$f":"IF(Q7=\"\",\"\",INDEX($AX$1:$AX$7,WEEKDAY(Q7,16)))","v":"الجمعة"},{"$f":"IF(R7=\"\",\"\",INDEX($AX$1:$AX$7,WEEKDAY(R7,16)))","v":"السبت"},{"$f":"IF(S7=\"\",\"\",INDEX($AX$1:$AX$7,WEEKDAY(S7,16)))","v":"الأحد"},{"$f":"IF(T7=\"\",\"\",INDEX($AX$1:$AX$7,WEEKDAY(T7,16)))","v":"الإثنين"},{"$f":"IF(U7=\"\",\"\",INDEX($AX$1:$AX$7,WEEKDAY(U7,16)))","v":"الثلاثاء"},{"$f":"IF(V7=\"\",\"\",INDEX($AX$1:$AX$7,WEEKDAY(V7,16)))","v":"الأربعاء"},{"$f":"IF(W7=\"\",\"\",INDEX($AX$1:$AX$7,WEEKDAY(W7,16)))","v":"الخميس"},{"$f":"IF(X7=\"\",\"\",INDEX($AX$1:$AX$7,WEEKDAY(X7,16)))","v":"الجمعة"},{"$f":"IF(Y7=\"\",\"\",INDEX($AX$1:$AX$7,WEEKDAY(Y7,16)))","v":"السبت"},{"$f":"IF(Z7=\"\",\"\",INDEX($AX$1:$AX$7,WEEKDAY(Z7,16)))","v":"الأحد"},{"$f":"IF(AA7=\"\",\"\",INDEX($AX$1:$AX$7,WEEKDAY(AA7,16)))","v":"الإثنين"},{"$f":"IF(AB7=\"\",\"\",INDEX($AX$1:$AX$7,WEEKDAY(AB7,16)))","v":"الثلاثاء"},{"$f":"IF(AC7=\"\",\"\",INDEX($AX$1:$AX$7,WEEKDAY(AC7,16)))","v":"الأربعاء"},{"$f":"IF(AD7=\"\",\"\",INDEX($AX$1:$AX$7,WEEKDAY(AD7,16)))","v":"الخميس"},{"$f":"IF(AE7=\"\",\"\",INDEX($AX$1:$AX$7,WEEKDAY(AE7,16)))","v":"الجمعة"},{"$f":"IF(AF7=\"\",\"\",INDEX($AX$1:$AX$7,WEEKDAY(AF7,16)))","v":"السبت"},{"$f":"IF(AG7=\"\",\"\",INDEX($AX$1:$AX$7,WEEKDAY(AG7,16)))","v":"الأحد"},"غياب","عرضية","مرضية ","عدم صرف","سنوية","تنبيه","انذار","حسم","مغادرات","تأخير",null,null,6,null,null,"انذار","الخميس","يونيو"]
[null,null,{"$f":"IF(COLUMNS($A$1:A1)>DAY(DATE($AB$4,INDEX(ROW($A$1:$A$12),MATCH($AB$3,$AY$1:$AY$12,0)),COLUMNS($A$1:A1))),\"\",DATE($AB$4,INDEX(ROW($A$1:$A$12),MATCH($AB$3,$AY$1:$AY$12,0)),COLUMNS($A$1:A1)))","v":"2023-12-01"},{"$f":"IF(COLUMNS($A$1:B1)>DAY(DATE($AB$4,INDEX(ROW($A$1:$A$12),MATCH($AB$3,$AY$1:$AY$12,0)),COLUMNS($A$1:B1))),\"\",DATE($AB$4,INDEX(ROW($A$1:$A$12),MATCH($AB$3,$AY$1:$AY$12,0)),COLUMNS($A$1:B1)))","v":"2023-12-02"},{"$f":"IF(COLUMNS($A$1:C1)>DAY(DATE($AB$4,INDEX(ROW($A$1:$A$12),MATCH($AB$3,$AY$1:$AY$12,0)),COLUMNS($A$1:C1))),\"\",DATE($AB$4,INDEX(ROW($A$1:$A$12),MATCH($AB$3,$AY$1:$AY$12,0)),COLUMNS($A$1:C1)))","v":"2023-12-03"},{"$f":"IF(COLUMNS($A$1:D1)>DAY(DATE($AB$4,INDEX(ROW($A$1:$A$12),MATCH($AB$3,$AY$1:$AY$12,0)),COLUMNS($A$1:D1))),\"\",DATE($AB$4,INDEX(ROW($A$1:$A$12),MATCH($AB$3,$AY$1:$AY$12,0)),COLUMNS($A$1:D1)))","v":"2023-12-04"},{"$f":"IF(COLUMNS($A$1:E1)>DAY(DATE($AB$4,INDEX(ROW($A$1:$A$12),MATCH($AB$3,$AY$1:$AY$12,0)),COLUMNS($A$1:E1))),\"\",DATE($AB$4,INDEX(ROW($A$1:$A$12),MATCH($AB$3,$AY$1:$AY$12,0)),COLUMNS($A$1:E1)))","v":"2023-12-05"},{"$f":"IF(COLUMNS($A$1:F1)>DAY(DATE($AB$4,INDEX(ROW($A$1:$A$12),MATCH($AB$3,$AY$1:$AY$12,0)),COLUMNS($A$1:F1))),\"\",DATE($AB$4,INDEX(ROW($A$1:$A$12),MATCH($AB$3,$AY$1:$AY$12,0)),COLUMNS($A$1:F1)))","v":"2023-12-06"},{"$f":"IF(COLUMNS($A$1:G1)>DAY(DATE($AB$4,INDEX(ROW($A$1:$A$12),MATCH($AB$3,$AY$1:$AY$12,0)),COLUMNS($A$1:G1))),\"\",DATE($AB$4,INDEX(ROW($A$1:$A$12),MATCH($AB$3,$AY$1:$AY$12,0)),COLUMNS($A$1:G1)))","v":"2023-12-07"},{"$f":"IF(COLUMNS($A$1:H1)>DAY(DATE($AB$4,INDEX(ROW($A$1:$A$12),MATCH($AB$3,$AY$1:$AY$12,0)),COLUMNS($A$1:H1))),\"\",DATE($AB$4,INDEX(ROW($A$1:$A$12),MATCH($AB$3,$AY$1:$AY$12,0)),COLUMNS($A$1:H1)))","v":"2023-12-08"},{"$f":"IF(COLUMNS($A$1:I1)>DAY(DATE($AB$4,INDEX(ROW($A$1:$A$12),MATCH($AB$3,$AY$1:$AY$12,0)),COLUMNS($A$1:I1))),\"\",DATE($AB$4,INDEX(ROW($A$1:$A$12),MATCH($AB$3,$AY$1:$AY$12,0)),COLUMNS($A$1:I1)))","v":"2023-12-09"},{"$f":"IF(COLUMNS($A$1:J1)>DAY(DATE($AB$4,INDEX(ROW($A$1:$A$12),MATCH($AB$3,$AY$1:$AY$12,0)),COLUMNS($A$1:J1))),\"\",DATE($AB$4,INDEX(ROW($A$1:$A$12),MATCH($AB$3,$AY$1:$AY$12,0)),COLUMNS($A$1:J1)))","v":"2023-12-10"},{"$f":"IF(COLUMNS($A$1:K1)>DAY(DATE($AB$4,INDEX(ROW($A$1:$A$12),MATCH($AB$3,$AY$1:$AY$12,0)),COLUMNS($A$1:K1))),\"\",DATE($AB$4,INDEX(ROW($A$1:$A$12),MATCH($AB$3,$AY$1:$AY$12,0)),COLUMNS($A$1:K1)))","v":"2023-12-11"},{"$f":"IF(COLUMNS($A$1:L1)>DAY(DATE($AB$4,INDEX(ROW($A$1:$A$12),MATCH($AB$3,$AY$1:$AY$12,0)),COLUMNS($A$1:L1))),\"\",DATE($AB$4,INDEX(ROW($A$1:$A$12),MATCH($AB$3,$AY$1:$AY$12,0)),COLUMNS($A$1:L1)))","v":"2023-12-12"},{"$f":"IF(COLUMNS($A$1:M1)>DAY(DATE($AB$4,INDEX(ROW($A$1:$A$12),MATCH($AB$3,$AY$1:$AY$12,0)),COLUMNS($A$1:M1))),\"\",DATE($AB$4,INDEX(ROW($A$1:$A$12),MATCH($AB$3,$AY$1:$AY$12,0)),COLUMNS($A$1:M1)))","v":"2023-12-13"},{"$f":"IF(COLUMNS($A$1:N1)>DAY(DATE($AB$4,INDEX(ROW($A$1:$A$12),MATCH($AB$3,$AY$1:$AY$12,0)),COLUMNS($A$1:N1))),\"\",DATE($AB$4,INDEX(ROW($A$1:$A$12),MATCH($AB$3,$AY$1:$AY$12,0)),COLUMNS($A$1:N1)))","v":"2023-12-14"},{"$f":"IF(COLUMNS($A$1:O1)>DAY(DATE($AB$4,INDEX(ROW($A$1:$A$12),MATCH($AB$3,$AY$1:$AY$12,0)),COLUMNS($A$1:O1))),\"\",DATE($AB$4,INDEX(ROW($A$1:$A$12),MATCH($AB$3,$AY$1:$AY$12,0)),COLUMNS($A$1:O1)))","v":"2023-12-15"},{"$f":"IF(COLUMNS($A$1:P1)>DAY(DATE($AB$4,INDEX(ROW($A$1:$A$12),MATCH($AB$3,$AY$1:$AY$12,0)),COLUMNS($A$1:P1))),\"\",DATE($AB$4,INDEX(ROW($A$1:$A$12),MATCH($AB$3,$AY$1:$AY$12,0)),COLUMNS($A$1:P1)))","v":"2023-12-16"},{"$f":"IF(COLUMNS($A$1:Q1)>DAY(DATE($AB$4,INDEX(ROW($A$1:$A$12),MATCH($AB$3,$AY$1:$AY$12,0)),COLUMNS($A$1:Q1))),\"\",DATE($AB$4,INDEX(ROW($A$1:$A$12),MATCH($AB$3,$AY$1:$AY$12,0)),COLUMNS($A$1:Q1)))","v":"2023-12-17"},{"$f":"IF(COLUMNS($A$1:R1)>DAY(DATE($AB$4,INDEX(ROW($A$1:$A$12),MATCH($AB$3,$AY$1:$AY$12,0)),COLUMNS($A$1:R1))),\"\",DATE($AB$4,INDEX(ROW($A$1:$A$12),MATCH($AB$3,$AY$1:$AY$12,0)),COLUMNS($A$1:R1)))","v":"2023-12-18"},{"$f":"IF(COLUMNS($A$1:S1)>DAY(DATE($AB$4,INDEX(ROW($A$1:$A$12),MATCH($AB$3,$AY$1:$AY$12,0)),COLUMNS($A$1:S1))),\"\",DATE($AB$4,INDEX(ROW($A$1:$A$12),MATCH($AB$3,$AY$1:$AY$12,0)),COLUMNS($A$1:S1)))","v":"2023-12-19"},{"$f":"IF(COLUMNS($A$1:T1)>DAY(DATE($AB$4,INDEX(ROW($A$1:$A$12),MATCH($AB$3,$AY$1:$AY$12,0)),COLUMNS($A$1:T1))),\"\",DATE($AB$4,INDEX(ROW($A$1:$A$12),MATCH($AB$3,$AY$1:$AY$12,0)),COLUMNS($A$1:T1)))","v":"2023-12-20"},{"$f":"IF(COLUMNS($A$1:U1)>DAY(DATE($AB$4,INDEX(ROW($A$1:$A$12),MATCH($AB$3,$AY$1:$AY$12,0)),COLUMNS($A$1:U1))),\"\",DATE($AB$4,INDEX(ROW($A$1:$A$12),MATCH($AB$3,$AY$1:$AY$12,0)),COLUMNS($A$1:U1)))","v":"2023-12-21"},{"$f":"IF(COLUMNS($A$1:V1)>DAY(DATE($AB$4,INDEX(ROW($A$1:$A$12),MATCH($AB$3,$AY$1:$AY$12,0)),COLUMNS($A$1:V1))),\"\",DATE($AB$4,INDEX(ROW($A$1:$A$12),MATCH($AB$3,$AY$1:$AY$12,0)),COLUMNS($A$1:V1)))","v":"2023-12-22"},{"$f":"IF(COLUMNS($A$1:W1)>DAY(DATE($AB$4,INDEX(ROW($A$1:$A$12),MATCH($AB$3,$AY$1:$AY$12,0)),COLUMNS($A$1:W1))),\"\",DATE($AB$4,INDEX(ROW($A$1:$A$12),MATCH($AB$3,$AY$1:$AY$12,0)),COLUMNS($A$1:W1)))","v":"2023-12-23"},{"$f":"IF(COLUMNS($A$1:X1)>DAY(DATE($AB$4,INDEX(ROW($A$1:$A$12),MATCH($AB$3,$AY$1:$AY$12,0)),COLUMNS($A$1:X1))),\"\",DATE($AB$4,INDEX(ROW($A$1:$A$12),MATCH($AB$3,$AY$1:$AY$12,0)),COLUMNS($A$1:X1)))","v":"2023-12-24"},{"$f":"IF(COLUMNS($A$1:Y1)>DAY(DATE($AB$4,INDEX(ROW($A$1:$A$12),MATCH($AB$3,$AY$1:$AY$12,0)),COLUMNS($A$1:Y1))),\"\",DATE($AB$4,INDEX(ROW($A$1:$A$12),MATCH($AB$3,$AY$1:$AY$12,0)),COLUMNS($A$1:Y1)))","v":"2023-12-25"},{"$f":"IF(COLUMNS($A$1:Z1)>DAY(DATE($AB$4,INDEX(ROW($A$1:$A$12),MATCH($AB$3,$AY$1:$AY$12,0)),COLUMNS($A$1:Z1))),\"\",DATE($AB$4,INDEX(ROW($A$1:$A$12),MATCH($AB$3,$AY$1:$AY$12,0)),COLUMNS($A$1:Z1)))","v":"2023-12-26"},{"$f":"IF(COLUMNS($A$1:AA1)>DAY(DATE($AB$4,INDEX(ROW($A$1:$A$12),MATCH($AB$3,$AY$1:$AY$12,0)),COLUMNS($A$1:AA1))),\"\",DATE($AB$4,INDEX(ROW($A$1:$A$12),MATCH($AB$3,$AY$1:$AY$12,0)),COLUMNS($A$1:AA1)))","v":"2023-12-27"},{"$f":"IF(COLUMNS($A$1:AB1)>DAY(DATE($AB$4,INDEX(ROW($A$1:$A$12),MATCH($AB$3,$AY$1:$AY$12,0)),COLUMNS($A$1:AB1))),\"\",DATE($AB$4,INDEX(ROW($A$1:$A$12),MATCH($AB$3,$AY$1:$AY$12,0)),COLUMNS($A$1:AB1)))","v":"2023-12-28"},{"$f":"IF(COLUMNS($A$1:AC1)>DAY(DATE($AB$4,INDEX(ROW($A$1:$A$12),MATCH($AB$3,$AY$1:$AY$12,0)),COLUMNS($A$1:AC1))),\"\",DATE($AB$4,INDEX(ROW($A$1:$A$12),MATCH($AB$3,$AY$1:$AY$12,0)),COLUMNS($A$1:AC1)))","v":"2023-12-29"},{"$f":"IF(COLUMNS($A$1:AD1)>DAY(DATE($AB$4,INDEX(ROW($A$1:$A$12),MATCH($AB$3,$AY$1:$AY$12,0)),COLUMNS($A$1:AD1))),\"\",DATE($AB$4,INDEX(ROW($A$1:$A$12),MATCH($AB$3,$AY$1:$AY$12,0)),COLUMNS($A$1:AD1)))","v":"2023-12-30"},{"$f":"IF(COLUMNS($A$1:AE1)>DAY(DATE($AB$4,INDEX(ROW($A$1:$A$12),MATCH($AB$3,$AY$1:$AY$12,0)),COLUMNS($A$1:AE1))),\"\",DATE($AB$4,INDEX(ROW($A$1:$A$12),MATCH($AB$3,$AY$1:$AY$12,0)),COLUMNS($A$1:AE1)))","v":"2023-12-31"},"غياب","عرضية","مرضى","عدم صرف","سنوية","تنبيه","انذار","غياب","مغادرات","تأخير",null,null,7,null,null,"حسم من الراتب","الجمعة","يوليه"]
[{"$f":"ROW()-7","v":1},"س 1","مرضى",null,"مرضى","سنوية","مرضى",null,"انذار",null,null,null,null,"عرضية",null,"عرضية",null,null,null,"سنوية",null,null,null,null,null,"تأخير","تأخير",null,null,"تأخير",null,null,null,{"$f":"COUNTIF(C8:AG8,\"*\"&AH$7&\"*\")","v":0},{"$f":"COUNTIF(D8:AH8,\"*\"&AI$7&\"*\")","v":2},{"$f":"COUNTIF(C8:AG8,\"*\"&AJ$7&\"*\")","v":3},{"$f":"COUNTIF(C8:AH8,\"*\"&AK$7&\"*\")","v":0},{"$f":"COUNTIF(C8:AG8,\"*\"&AL$7&\"*\")","v":2},{"$f":"COUNTIF(C8:AG8,\"*\"&AM$7&\"*\")","v":0},{"$f":"COUNTIF(C8:AG8,\"*\"&AN$7&\"*\")","v":1},{"$f":"COUNTIF(C8:AG8,\"*\"&AO$7&\"*\")","v":0},{"$f":"COUNTIF(C8:AG8,\"*\"&AP$7&\"*\")","v":0},{"$f":"COUNTIF(C8:AO8,\"*\"&AQ$7&\"*\")","v":3},null,null,8,null,null,"مغادرة ",null,"أغسطس"]
[{"$f":"ROW()-7","v":2},"س 2",null,null,null,null,null,null,null,null,null,null,null,null,null,null,null,null,"عرضية ",null,null,null,null,null,null,null,null,null,null,null,null,null,null,{"$f":"COUNTIF(C9:AG9,\"*\"&AH$7&\"*\")","v":0},{"$f":"COUNTIF(D9:AH9,\"*\"&AI$7&\"*\")","v":1},{"$f":"COUNTIF(C9:AG9,\"*\"&AJ$7&\"*\")","v":0},{"$f":"COUNTIF(C9:AH9,\"*\"&AK$7&\"*\")","v":0},{"$f":"COUNTIF(C9:AG9,\"*\"&AL$7&\"*\")","v":0},{"$f":"COUNTIF(C9:AG9,\"*\"&AM$7&\"*\")","v":0},{"$f":"COUNTIF(C9:AG9,\"*\"&AN$7&\"*\")","v":0},{"$f":"COUNTIF(C9:AG9,\"*\"&AO$7&\"*\")","v":0},{"$f":"COUNTIF(C9:AG9,\"*\"&AP$7&\"*\")","v":0},{"$f":"COUNTIF(C9:AO9,\"*\"&AQ$7&\"*\")","v":0},null,null,9,null,null,"تأخير",null,"سبتمبر"]
[3,"س 3",null,null,null,null,null,null,null,null,null,null,null,null,null,null,null,null,null,null,null,null,null,null,null,null,null,null,null,null,null,null,null,{"$f":"COUNTIF(C10:AG10,\"*\"&AH$7&\"*\")","v":0},{"$f":"COUNTIF(D10:AH10,\"*\"&AI$7&\"*\")","v":0},{"$f":"COUNTIF(C10:AG10,\"*\"&AJ$7&\"*\")","v":0},{"$f":"COUNTIF(C10:AH10,\"*\"&AK$7&\"*\")","v":0},{"$f":"COUNTIF(C10:AG10,\"*\"&AL$7&\"*\")","v":0},{"$f":"COUNTIF(C10:AG10,\"*\"&AM$7&\"*\")","v":0},{"$f":"COUNTIF(C10:AG10,\"*\"&AN$7&\"*\")","v":0},{"$f":"COUNTIF(C10:AG10,\"*\"&AO$7&\"*\")","v":0},{"$f":"COUNTIF(C10:AG10,\"*\"&AP$7&\"*\")","v":0},{"$f":"COUNTIF(C10:AO10,\"*\"&AQ$7&\"*\")","v":0},null,null,10,null,null,null,null,"أكتوبر"]
[4,"س 4",null,null,null,null,null,null,null,null,null,null,null,null,null,null,null,null,null,null,null,null,null,null,null,null,null,null,null,null,null,null,null,{"$f":"COUNTIF(C11:AG11,\"*\"&AH$7&\"*\")","v":0},{"$f":"COUNTIF(D11:AH11,\"*\"&AI$7&\"*\")","v":0},{"$f":"COUNTIF(C11:AG11,\"*\"&AJ$7&\"*\")","v":0},{"$f":"COUNTIF(C11:AH11,\"*\"&AK$7&\"*\")","v":0},{"$f":"COUNTIF(C11:AG11,\"*\"&AL$7&\"*\")","v":0},{"$f":"COUNTIF(C11:AG11,\"*\"&AM$7&\"*\")","v":0},{"$f":"COUNTIF(C11:AG11,\"*\"&AN$7&\"*\")","v":0},{"$f":"COUNTIF(C11:AG11,\"*\"&AO$7&\"*\")","v":0},{"$f":"COUNTIF(C11:AG11,\"*\"&AP$7&\"*\")","v":0},{"$f":"COUNTIF(C11:AO11,\"*\"&AQ$7&\"*\")","v":0},null,null,11,null,null,null,null,"نوفمبر"]
[5,"س 5",null,null,null,null,null,null,"مرضى",null,null,null,null,"عدم صرف",null,null,null,null,null,null,null,null,null,null,null,null,null,null,null,null,null,null,null,{"$f":"COUNTIF(C12:AG12,\"*\"&AH$7&\"*\")","v":0},{"$f":"COUNTIF(D12:AH12,\"*\"&AI$7&\"*\")","v":0},{"$f":"COUNTIF(C12:AG12,\"*\"&AJ$7&\"*\")","v":1},{"$f":"COUNTIF(C12:AH12,\"*\"&AK$7&\"*\")","v":1},{"$f":"COUNTIF(C12:AG12,\"*\"&AL$7&\"*\")","v":0},{"$f":"COUNTIF(C12:AG12,\"*\"&AM$7&\"*\")","v":0},{"$f":"COUNTIF(C12:AG12,\"*\"&AN$7&\"*\")","v":0},{"$f":"COUNTIF(C12:AG12,\"*\"&AO$7&\"*\")","v":0},{"$f":"COUNTIF(C12:AG12,\"*\"&AP$7&\"*\")","v":0},{"$f":"COUNTIF(C12:AO12,\"*\"&AQ$7&\"*\")","v":0},null,null,12,null,null,null,null,"ديسمبر"]
[6,"س 6",null,null,null,null,null,null,null,null,null,null,null,null,null,null,null,null,null,null,null,null,null,null,null,null,null,null,null,null,null,null,null,{"$f":"COUNTIF(C13:AG13,\"*\"&AH$7&\"*\")","v":0},{"$f":"COUNTIF(D13:AH13,\"*\"&AI$7&\"*\")","v":0},{"$f":"COUNTIF(C13:AG13,\"*\"&AJ$7&\"*\")","v":0},{"$f":"COUNTIF(C13:AH13,\"*\"&AK$7&\"*\")","v":0},{"$f":"COUNTIF(C13:AG13,\"*\"&AL$7&\"*\")","v":0},{"$f":"COUNTIF(C13:AG13,\"*\"&AM$7&\"*\")","v":0},{"$f":"COUNTIF(C13:AG13,\"*\"&AN$7&\"*\")","v":0},{"$f":"COUNTIF(C13:AG13,\"*\"&AO$7&\"*\")","v":0},{"$f":"COUNTIF(C13:AG13,\"*\"&AP$7&\"*\")","v":0},{"$f":"COUNTIF(C13:AO13,\"*\"&AQ$7&\"*\")","v":0},null,null,13]
[7,"س 7",null,null,null,null,null,null,null,null,null,null,null,null,null,null,null,null,null,null,null,null,null,null,null,null,null,null,null,null,null,null,null,{"$f":"COUNTIF(C14:AG14,\"*\"&AH$7&\"*\")","v":0},{"$f":"COUNTIF(D14:AH14,\"*\"&AI$7&\"*\")","v":0},{"$f":"COUNTIF(C14:AG14,\"*\"&AJ$7&\"*\")","v":0},{"$f":"COUNTIF(C14:AH14,\"*\"&AK$7&\"*\")","v":0},{"$f":"COUNTIF(C14:AG14,\"*\"&AL$7&\"*\")","v":0},{"$f":"COUNTIF(C14:AG14,\"*\"&AM$7&\"*\")","v":0},{"$f":"COUNTIF(C14:AG14,\"*\"&AN$7&\"*\")","v":0},{"$f":"COUNTIF(C14:AG14,\"*\"&AO$7&\"*\")","v":0},{"$f":"COUNTIF(C14:AG14,\"*\"&AP$7&\"*\")","v":0},{"$f":"COUNTIF(C14:AO14,\"*\"&AQ$7&\"*\")","v":0},null,null,14]
[8,"س 8",null,null,null,null,null,null,null,null,null,null,null,null,null,null,null,null,null,null,null,null,null,null,null,null,null,null,null,null,null,null,null,{"$f":"COUNTIF(C15:AG15,\"*\"&AH$7&\"*\")","v":0},{"$f":"COUNTIF(D15:AH15,\"*\"&AI$7&\"*\")","v":0},{"$f":"COUNTIF(C15:AG15,\"*\"&AJ$7&\"*\")","v":0},{"$f":"COUNTIF(C15:AH15,\"*\"&AK$7&\"*\")","v":0},{"$f":"COUNTIF(C15:AG15,\"*\"&AL$7&\"*\")","v":0},{"$f":"COUNTIF(C15:AG15,\"*\"&AM$7&\"*\")","v":0},{"$f":"COUNTIF(C15:AG15,\"*\"&AN$7&\"*\")","v":0},{"$f":"COUNTIF(C15:AG15,\"*\"&AO$7&\"*\")","v":0},{"$f":"COUNTIF(C15:AG15,\"*\"&AP$7&\"*\")","v":0},{"$f":"COUNTIF(C15:AO15,\"*\"&AQ$7&\"*\")","v":0},null,null,15]
[9,"س 9",null,null,null,null,null,null,null,null,null,null,null,null,null,null,null,null,null,null,null,null,null,null,null,null,null,null,null,null,null,null,null,{"$f":"COUNTIF(C16:AG16,\"*\"&AH$7&\"*\")","v":0},{"$f":"COUNTIF(D16:AH16,\"*\"&AI$7&\"*\")","v":0},{"$f":"COUNTIF(C16:AG16,\"*\"&AJ$7&\"*\")","v":0},{"$f":"COUNTIF(C16:AH16,\"*\"&AK$7&\"*\")","v":0},{"$f":"COUNTIF(C16:AG16,\"*\"&AL$7&\"*\")","v":0},{"$f":"COUNTIF(C16:AG16,\"*\"&AM$7&\"*\")","v":0},{"$f":"COUNTIF(C16:AG16,\"*\"&AN$7&\"*\")","v":0},{"$f":"COUNTIF(C16:AG16,\"*\"&AO$7&\"*\")","v":0},{"$f":"COUNTIF(C16:AG16,\"*\"&AP$7&\"*\")","v":0},{"$f":"COUNTIF(C16:AO16,\"*\"&AQ$7&\"*\")","v":0},null,null,16]
[10,"س 10",null,null,null,null,null,null,null,null,null,null,null,null,null,null,null,null,null,null,null,null,null,null,null,null,null,null,null,null,null,null,null,{"$f":"COUNTIF(C17:AG17,\"*\"&AH$7&\"*\")","v":0},{"$f":"COUNTIF(D17:AH17,\"*\"&AI$7&\"*\")","v":0},{"$f":"COUNTIF(C17:AG17,\"*\"&AJ$7&\"*\")","v":0},{"$f":"COUNTIF(C17:AH17,\"*\"&AK$7&\"*\")","v":0},{"$f":"COUNTIF(C17:AG17,\"*\"&AL$7&\"*\")","v":0},{"$f":"COUNTIF(C17:AG17,\"*\"&AM$7&\"*\")","v":0},{"$f":"COUNTIF(C17:AG17,\"*\"&AN$7&\"*\")","v":0},{"$f":"COUNTIF(C17:AG17,\"*\"&AO$7&\"*\")","v":0},{"$f":"COUNTIF(C17:AG17,\"*\"&AP$7&\"*\")","v":0},{"$f":"COUNTIF(C17:AO17,\"*\"&AQ$7&\"*\")","v":0},null,null,17]
[11,"س 11",null,null,null,null,null,null,null,null,null,null,null,null,null,null,null,null,null,null,null,null,null,null,null,null,null,null,null,null,null,null,null,{"$f":"COUNTIF(C18:AG18,\"*\"&AH$7&\"*\")","v":0},{"$f":"COUNTIF(D18:AH18,\"*\"&AI$7&\"*\")","v":0},{"$f":"COUNTIF(C18:AG18,\"*\"&AJ$7&\"*\")","v":0},{"$f":"COUNTIF(C18:AH18,\"*\"&AK$7&\"*\")","v":0},{"$f":"COUNTIF(C18:AG18,\"*\"&AL$7&\"*\")","v":0},{"$f":"COUNTIF(C18:AG18,\"*\"&AM$7&\"*\")","v":0},{"$f":"COUNTIF(C18:AG18,\"*\"&AN$7&\"*\")","v":0},{"$f":"COUNTIF(C18:AG18,\"*\"&AO$7&\"*\")","v":0},{"$f":"COUNTIF(C18:AG18,\"*\"&AP$7&\"*\")","v":0},{"$f":"COUNTIF(C18:AO18,\"*\"&AQ$7&\"*\")","v":0},null,null,18]
[12,"س 12",null,null,null,null,null,null,null,null,null,null,null,null,null,null,null,null,null,null,null,null,null,null,null,null,null,null,null,null,null,null,null,{"$f":"COUNTIF(C19:AG19,\"*\"&AH$7&\"*\")","v":0},{"$f":"COUNTIF(D19:AH19,\"*\"&AI$7&\"*\")","v":0},{"$f":"COUNTIF(C19:AG19,\"*\"&AJ$7&\"*\")","v":0},{"$f":"COUNTIF(C19:AH19,\"*\"&AK$7&\"*\")","v":0},{"$f":"COUNTIF(C19:AG19,\"*\"&AL$7&\"*\")","v":0},{"$f":"COUNTIF(C19:AG19,\"*\"&AM$7&\"*\")","v":0},{"$f":"COUNTIF(C19:AG19,\"*\"&AN$7&\"*\")","v":0},{"$f":"COUNTIF(C19:AG19,\"*\"&AO$7&\"*\")","v":0},{"$f":"COUNTIF(C19:AG19,\"*\"&AP$7&\"*\")","v":0},{"$f":"COUNTIF(C19:AO19,\"*\"&AQ$7&\"*\")","v":0},null,null,19]
[13,"س 13",null,null,null,null,null,null,null,null,null,null,null,null,null,null,null,null,null,null,null,null,null,null,null,null,null,null,null,null,null,null,null,{"$f":"COUNTIF(C20:AG20,\"*\"&AH$7&\"*\")","v":0},{"$f":"COUNTIF(D20:AH20,\"*\"&AI$7&\"*\")","v":0},{"$f":"COUNTIF(C20:AG20,\"*\"&AJ$7&\"*\")","v":0},{"$f":"COUNTIF(C20:AH20,\"*\"&AK$7&\"*\")","v":0},{"$f":"COUNTIF(C20:AG20,\"*\"&AL$7&\"*\")","v":0},{"$f":"COUNTIF(C20:AG20,\"*\"&AM$7&\"*\")","v":0},{"$f":"COUNTIF(C20:AG20,\"*\"&AN$7&\"*\")","v":0},{"$f":"COUNTIF(C20:AG20,\"*\"&AO$7&\"*\")","v":0},{"$f":"COUNTIF(C20:AG20,\"*\"&AP$7&\"*\")","v":0},{"$f":"COUNTIF(C20:AO20,\"*\"&AQ$7&\"*\")","v":0},null,null,20]
[14,"س 14",null,null,null,null,null,null,null,null,null,null,null,null,null,null,null,null,null,null,null,null,null,null,null,null,null,null,null,null,null,null,null,{"$f":"COUNTIF(C21:AG21,\"*\"&AH$7&\"*\")","v":0},{"$f":"COUNTIF(D21:AH21,\"*\"&AI$7&\"*\")","v":0},{"$f":"COUNTIF(C21:AG21,\"*\"&AJ$7&\"*\")","v":0},{"$f":"COUNTIF(C21:AH21,\"*\"&AK$7&\"*\")","v":0},{"$f":"COUNTIF(C21:AG21,\"*\"&AL$7&\"*\")","v":0},{"$f":"COUNTIF(C21:AG21,\"*\"&AM$7&\"*\")","v":0},{"$f":"COUNTIF(C21:AG21,\"*\"&AN$7&\"*\")","v":0},{"$f":"COUNTIF(C21:AG21,\"*\"&AO$7&\"*\")","v":0},{"$f":"COUNTIF(C21:AG21,\"*\"&AP$7&\"*\")","v":0},{"$f":"COUNTIF(C21:AO21,\"*\"&AQ$7&\"*\")","v":0},null,null,21]
[15,"س 15",null,null,null,null,null,null,null,null,null,null,null,null,null,null,null,null,null,null,null,null,null,null,null,null,null,null,null,null,null,null,null,{"$f":"COUNTIF(C22:AG22,\"*\"&AH$7&\"*\")","v":0},{"$f":"COUNTIF(D22:AH22,\"*\"&AI$7&\"*\")","v":0},{"$f":"COUNTIF(C22:AG22,\"*\"&AJ$7&\"*\")","v":0},{"$f":"COUNTIF(C22:AH22,\"*\"&AK$7&\"*\")","v":0},{"$f":"COUNTIF(C22:AG22,\"*\"&AL$7&\"*\")","v":0},{"$f":"COUNTIF(C22:AG22,\"*\"&AM$7&\"*\")","v":0},{"$f":"COUNTIF(C22:AG22,\"*\"&AN$7&\"*\")","v":0},{"$f":"COUNTIF(C22:AG22,\"*\"&AO$7&\"*\")","v":0},{"$f":"COUNTIF(C22:AG22,\"*\"&AP$7&\"*\")","v":0},{"$f":"COUNTIF(C22:AO22,\"*\"&AQ$7&\"*\")","v":0},null,null,22]
[16,"س 16",null,null,null,null,null,null,null,null,null,null,null,null,null,null,null,null,null,null,null,null,null,null,null,null,null,null,null,null,null,null,null,{"$f":"COUNTIF(C23:AG23,\"*\"&AH$7&\"*\")","v":0},{"$f":"COUNTIF(D23:AH23,\"*\"&AI$7&\"*\")","v":0},{"$f":"COUNTIF(C23:AG23,\"*\"&AJ$7&\"*\")","v":0},{"$f":"COUNTIF(C23:AH23,\"*\"&AK$7&\"*\")","v":0},{"$f":"COUNTIF(C23:AG23,\"*\"&AL$7&\"*\")","v":0},{"$f":"COUNTIF(C23:AG23,\"*\"&AM$7&\"*\")","v":0},{"$f":"COUNTIF(C23:AG23,\"*\"&AN$7&\"*\")","v":0},{"$f":"COUNTIF(C23:AG23,\"*\"&AO$7&\"*\")","v":0},{"$f":"COUNTIF(C23:AG23,\"*\"&AP$7&\"*\")","v":0},{"$f":"COUNTIF(C23:AO23,\"*\"&AQ$7&\"*\")","v":0},null,null,23]
[17,"س 17",null,null,null,null,null,null,null,null,null,null,null,null,null,null,null,null,null,null,null,null,null,null,null,null,null,null,null,null,null,null,null,{"$f":"COUNTIF(C24:AG24,\"*\"&AH$7&\"*\")","v":0},{"$f":"COUNTIF(D24:AH24,\"*\"&AI$7&\"*\")","v":0},{"$f":"COUNTIF(C24:AG24,\"*\"&AJ$7&\"*\")","v":0},{"$f":"COUNTIF(C24:AH24,\"*\"&AK$7&\"*\")","v":0},{"$f":"COUNTIF(C24:AG24,\"*\"&AL$7&\"*\")","v":0},{"$f":"COUNTIF(C24:AG24,\"*\"&AM$7&\"*\")","v":0},{"$f":"COUNTIF(C24:AG24,\"*\"&AN$7&\"*\")","v":0},{"$f":"COUNTIF(C24:AG24,\"*\"&AO$7&\"*\")","v":0},{"$f":"COUNTIF(C24:AG24,\"*\"&AP$7&\"*\")","v":0},{"$f":"COUNTIF(C24:AO24,\"*\"&AQ$7&\"*\")","v":0},null,null,24]
[18,"س 18",null,null,null,null,null,null,null,null,null,null,null,null,null,null,null,null,null,null,null,null,null,null,null,null,null,null,null,null,null,null,null,{"$f":"COUNTIF(C25:AG25,\"*\"&AH$7&\"*\")","v":0},{"$f":"COUNTIF(D25:AH25,\"*\"&AI$7&\"*\")","v":0},{"$f":"COUNTIF(C25:AG25,\"*\"&AJ$7&\"*\")","v":0},{"$f":"COUNTIF(C25:AH25,\"*\"&AK$7&\"*\")","v":0},{"$f":"COUNTIF(C25:AG25,\"*\"&AL$7&\"*\")","v":0},{"$f":"COUNTIF(C25:AG25,\"*\"&AM$7&\"*\")","v":0},{"$f":"COUNTIF(C25:AG25,\"*\"&AN$7&\"*\")","v":0},{"$f":"COUNTIF(C25:AG25,\"*\"&AO$7&\"*\")","v":0},{"$f":"COUNTIF(C25:AG25,\"*\"&AP$7&\"*\")","v":0},{"$f":"COUNTIF(C25:AO25,\"*\"&AQ$7&\"*\")","v":0},null,null,25]
[19,"س 19",null,null,null,null,null,null,null,null,null,null,null,null,null,null,null,null,null,null,null,null,null,null,null,null,null,null,null,null,null,null,null,{"$f":"COUNTIF(C26:AG26,\"*\"&AH$7&\"*\")","v":0},{"$f":"COUNTIF(D26:AH26,\"*\"&AI$7&\"*\")","v":0},{"$f":"COUNTIF(C26:AG26,\"*\"&AJ$7&\"*\")","v":0},{"$f":"COUNTIF(C26:AH26,\"*\"&AK$7&\"*\")","v":0},{"$f":"COUNTIF(C26:AG26,\"*\"&AL$7&\"*\")","v":0},{"$f":"COUNTIF(C26:AG26,\"*\"&AM$7&\"*\")","v":0},{"$f":"COUNTIF(C26:AG26,\"*\"&AN$7&\"*\")","v":0},{"$f":"COUNTIF(C26:AG26,\"*\"&AO$7&\"*\")","v":0},{"$f":"COUNTIF(C26:AG26,\"*\"&AP$7&\"*\")","v":0},{"$f":"COUNTIF(C26:AO26,\"*\"&AQ$7&\"*\")","v":0},null,null,26]
[20,"س 20",null,null,null,null,null,null,null,null,null,null,null,null,null,null,null,null,null,null,null,null,null,null,null,null,null,null,null,null,null,null,null,{"$f":"COUNTIF(C27:AG27,\"*\"&AH$7&\"*\")","v":0},{"$f":"COUNTIF(D27:AH27,\"*\"&AI$7&\"*\")","v":0},{"$f":"COUNTIF(C27:AG27,\"*\"&AJ$7&\"*\")","v":0},{"$f":"COUNTIF(C27:AH27,\"*\"&AK$7&\"*\")","v":0},{"$f":"COUNTIF(C27:AG27,\"*\"&AL$7&\"*\")","v":0},{"$f":"COUNTIF(C27:AG27,\"*\"&AM$7&\"*\")","v":0},{"$f":"COUNTIF(C27:AG27,\"*\"&AN$7&\"*\")","v":0},{"$f":"COUNTIF(C27:AG27,\"*\"&AO$7&\"*\")","v":0},{"$f":"COUNTIF(C27:AG27,\"*\"&AP$7&\"*\")","v":0},{"$f":"COUNTIF(C27:AO27,\"*\"&AQ$7&\"*\")","v":0},null,null,27]
[21,"س 21",null,null,null,null,null,null,null,null,null,null,null,null,null,null,null,null,null,null,null,null,null,null,null,null,null,null,null,null,null,null,null,{"$f":"COUNTIF(C28:AG28,\"*\"&AH$7&\"*\")","v":0},{"$f":"COUNTIF(D28:AH28,\"*\"&AI$7&\"*\")","v":0},{"$f":"COUNTIF(C28:AG28,\"*\"&AJ$7&\"*\")","v":0},{"$f":"COUNTIF(C28:AH28,\"*\"&AK$7&\"*\")","v":0},{"$f":"COUNTIF(C28:AG28,\"*\"&AL$7&\"*\")","v":0},{"$f":"COUNTIF(C28:AG28,\"*\"&AM$7&\"*\")","v":0},{"$f":"COUNTIF(C28:AG28,\"*\"&AN$7&\"*\")","v":0},{"$f":"COUNTIF(C28:AG28,\"*\"&AO$7&\"*\")","v":0},{"$f":"COUNTIF(C28:AG28,\"*\"&AP$7&\"*\")","v":0},{"$f":"COUNTIF(C28:AO28,\"*\"&AQ$7&\"*\")","v":0},null,null,28]
[22,"س 22",null,null,null,null,null,null,null,null,null,null,null,null,null,null,null,null,null,null,null,null,null,null,null,null,null,null,null,null,null,null,null,{"$f":"COUNTIF(C29:AG29,\"*\"&AH$7&\"*\")","v":0},{"$f":"COUNTIF(D29:AH29,\"*\"&AI$7&\"*\")","v":0},{"$f":"COUNTIF(C29:AG29,\"*\"&AJ$7&\"*\")","v":0},{"$f":"COUNTIF(C29:AH29,\"*\"&AK$7&\"*\")","v":0},{"$f":"COUNTIF(C29:AG29,\"*\"&AL$7&\"*\")","v":0},{"$f":"COUNTIF(C29:AG29,\"*\"&AM$7&\"*\")","v":0},{"$f":"COUNTIF(C29:AG29,\"*\"&AN$7&\"*\")","v":0},{"$f":"COUNTIF(C29:AG29,\"*\"&AO$7&\"*\")","v":0},{"$f":"COUNTIF(C29:AG29,\"*\"&AP$7&\"*\")","v":0},{"$f":"COUNTIF(C29:AO29,\"*\"&AQ$7&\"*\")","v":0},null,null,29]
[23,"س 23",null,null,null,null,null,null,null,null,null,null,null,null,null,null,null,null,null,null,null,null,null,null,null,null,null,null,null,null,null,null,null,{"$f":"COUNTIF(C30:AG30,\"*\"&AH$7&\"*\")","v":0},{"$f":"COUNTIF(D30:AH30,\"*\"&AI$7&\"*\")","v":0},{"$f":"COUNTIF(C30:AG30,\"*\"&AJ$7&\"*\")","v":0},{"$f":"COUNTIF(C30:AH30,\"*\"&AK$7&\"*\")","v":0},{"$f":"COUNTIF(C30:AG30,\"*\"&AL$7&\"*\")","v":0},{"$f":"COUNTIF(C30:AG30,\"*\"&AM$7&\"*\")","v":0},{"$f":"COUNTIF(C30:AG30,\"*\"&AN$7&\"*\")","v":0},{"$f":"COUNTIF(C30:AG30,\"*\"&AO$7&\"*\")","v":0},{"$f":"COUNTIF(C30:AG30,\"*\"&AP$7&\"*\")","v":0},{"$f":"COUNTIF(C30:AO30,\"*\"&AQ$7&\"*\")","v":0},null,null,30]
[24,"س 24",null,null,null,null,null,null,null,null,null,null,null,null,null,null,null,null,null,null,null,null,null,null,null,null,null,null,null,null,null,null,null,{"$f":"COUNTIF(C31:AG31,\"*\"&AH$7&\"*\")","v":0},{"$f":"COUNTIF(D31:AH31,\"*\"&AI$7&\"*\")","v":0},{"$f":"COUNTIF(C31:AG31,\"*\"&AJ$7&\"*\")","v":0},{"$f":"COUNTIF(C31:AH31,\"*\"&AK$7&\"*\")","v":0},{"$f":"COUNTIF(C31:AG31,\"*\"&AL$7&\"*\")","v":0},{"$f":"COUNTIF(C31:AG31,\"*\"&AM$7&\"*\")","v":0},{"$f":"COUNTIF(C31:AG31,\"*\"&AN$7&\"*\")","v":0},{"$f":"COUNTIF(C31:AG31,\"*\"&AO$7&\"*\")","v":0},{"$f":"COUNTIF(C31:AG31,\"*\"&AP$7&\"*\")","v":0},{"$f":"COUNTIF(C31:AO31,\"*\"&AQ$7&\"*\")","v":0},null,null,31]
[25,"س 25",null,null,null,null,null,null,null,null,null,null,null,null,null,null,null,null,null,null,null,null,null,null,null,null,null,null,null,null,null,null,null,{"$f":"COUNTIF(C32:AG32,\"*\"&AH$7&\"*\")","v":0},{"$f":"COUNTIF(D32:AH32,\"*\"&AI$7&\"*\")","v":0},{"$f":"COUNTIF(C32:AG32,\"*\"&AJ$7&\"*\")","v":0},{"$f":"COUNTIF(C32:AH32,\"*\"&AK$7&\"*\")","v":0},{"$f":"COUNTIF(C32:AG32,\"*\"&AL$7&\"*\")","v":0},{"$f":"COUNTIF(C32:AG32,\"*\"&AM$7&\"*\")","v":0},{"$f":"COUNTIF(C32:AG32,\"*\"&AN$7&\"*\")","v":0},{"$f":"COUNTIF(C32:AG32,\"*\"&AO$7&\"*\")","v":0},{"$f":"COUNTIF(C32:AG32,\"*\"&AP$7&\"*\")","v":0},{"$f":"COUNTIF(C32:AO32,\"*\"&AQ$7&\"*\")","v":0}]
[26,"س 26",null,null,null,null,null,null,null,null,null,null,null,null,null,null,null,null,null,null,null,null,null,null,null,null,null,null,null,null,null,null,null,{"$f":"COUNTIF(C33:AG33,\"*\"&AH$7&\"*\")","v":0},{"$f":"COUNTIF(D33:AH33,\"*\"&AI$7&\"*\")","v":0},{"$f":"COUNTIF(C33:AG33,\"*\"&AJ$7&\"*\")","v":0},{"$f":"COUNTIF(C33:AH33,\"*\"&AK$7&\"*\")","v":0},{"$f":"COUNTIF(C33:AG33,\"*\"&AL$7&\"*\")","v":0},{"$f":"COUNTIF(C33:AG33,\"*\"&AM$7&\"*\")","v":0},{"$f":"COUNTIF(C33:AG33,\"*\"&AN$7&\"*\")","v":0},{"$f":"COUNTIF(C33:AG33,\"*\"&AO$7&\"*\")","v":0},{"$f":"COUNTIF(C33:AG33,\"*\"&AP$7&\"*\")","v":0},{"$f":"COUNTIF(C33:AO33,\"*\"&AQ$7&\"*\")","v":0}]
[27,"س 27",null,null,null,null,null,null,null,null,null,null,null,null,null,null,null,null,null,null,null,null,null,null,null,null,null,null,null,null,null,null,null,{"$f":"COUNTIF(C34:AG34,\"*\"&AH$7&\"*\")","v":0},{"$f":"COUNTIF(D34:AH34,\"*\"&AI$7&\"*\")","v":0},{"$f":"COUNTIF(C34:AG34,\"*\"&AJ$7&\"*\")","v":0},{"$f":"COUNTIF(C34:AH34,\"*\"&AK$7&\"*\")","v":0},{"$f":"COUNTIF(C34:AG34,\"*\"&AL$7&\"*\")","v":0},{"$f":"COUNTIF(C34:AG34,\"*\"&AM$7&\"*\")","v":0},{"$f":"COUNTIF(C34:AG34,\"*\"&AN$7&\"*\")","v":0},{"$f":"COUNTIF(C34:AG34,\"*\"&AO$7&\"*\")","v":0},{"$f":"COUNTIF(C34:AG34,\"*\"&AP$7&\"*\")","v":0},{"$f":"COUNTIF(C34:AO34,\"*\"&AQ$7&\"*\")","v":0}]
[28,"س 28",null,null,null,null,null,null,null,null,null,null,null,null,null,null,null,null,null,null,null,null,null,null,null,null,null,null,null,null,null,null,null,{"$f":"COUNTIF(C35:AG35,\"*\"&AH$7&\"*\")","v":0},{"$f":"COUNTIF(D35:AH35,\"*\"&AI$7&\"*\")","v":0},{"$f":"COUNTIF(C35:AG35,\"*\"&AJ$7&\"*\")","v":0},{"$f":"COUNTIF(C35:AH35,\"*\"&AK$7&\"*\")","v":0},{"$f":"COUNTIF(C35:AG35,\"*\"&AL$7&\"*\")","v":0},{"$f":"COUNTIF(C35:AG35,\"*\"&AM$7&\"*\")","v":0},{"$f":"COUNTIF(C35:AG35,\"*\"&AN$7&\"*\")","v":0},{"$f":"COUNTIF(C35:AG35,\"*\"&AO$7&\"*\")","v":0},{"$f":"COUNTIF(C35:AG35,\"*\"&AP$7&\"*\")","v":0},{"$f":"COUNTIF(C35:AO35,\"*\"&AQ$7&\"*\")","v":0}]
[29,"س 29",null,null,null,null,null,null,null,null,null,null,null,null,null,null,null,null,null,null,null,null,null,null,null,null,null,null,null,null,null,null,null,{"$f":"COUNTIF(C36:AG36,\"*\"&AH$7&\"*\")","v":0},{"$f":"COUNTIF(D36:AH36,\"*\"&AI$7&\"*\")","v":0},{"$f":"COUNTIF(C36:AG36,\"*\"&AJ$7&\"*\")","v":0},{"$f":"COUNTIF(C36:AH36,\"*\"&AK$7&\"*\")","v":0},{"$f":"COUNTIF(C36:AG36,\"*\"&AL$7&\"*\")","v":0},{"$f":"COUNTIF(C36:AG36,\"*\"&AM$7&\"*\")","v":0},{"$f":"COUNTIF(C36:AG36,\"*\"&AN$7&\"*\")","v":0},{"$f":"COUNTIF(C36:AG36,\"*\"&AO$7&\"*\")","v":0},{"$f":"COUNTIF(C36:AG36,\"*\"&AP$7&\"*\")","v":0},{"$f":"COUNTIF(C36:AO36,\"*\"&AQ$7&\"*\")","v":0}]
[30,"س 30",null,null,null,null,null,null,null,null,null,null,null,null,null,null,null,null,null,null,null,null,null,null,null,null,null,null,null,null,null,null,null,{"$f":"COUNTIF(C37:AG37,\"*\"&AH$7&\"*\")","v":0},{"$f":"COUNTIF(D37:AH37,\"*\"&AI$7&\"*\")","v":0},{"$f":"COUNTIF(C37:AG37,\"*\"&AJ$7&\"*\")","v":0},{"$f":"COUNTIF(C37:AH37,\"*\"&AK$7&\"*\")","v":0},{"$f":"COUNTIF(C37:AG37,\"*\"&AL$7&\"*\")","v":0},{"$f":"COUNTIF(C37:AG37,\"*\"&AM$7&\"*\")","v":0},{"$f":"COUNTIF(C37:AG37,\"*\"&AN$7&\"*\")","v":0},{"$f":"COUNTIF(C37:AG37,\"*\"&AO$7&\"*\")","v":0},{"$f":"COUNTIF(C37:AG37,\"*\"&AP$7&\"*\")","v":0},{"$f":"COUNTIF(C37:AO37,\"*\"&AQ$7&\"*\")","v":0}]
[31,"س 31",null,null,null,null,null,null,null,null,null,null,null,null,null,null,null,null,null,null,null,null,null,null,null,null,null,null,null,null,null,null,null,{"$f":"COUNTIF(C38:AG38,\"*\"&AH$7&\"*\")","v":0},{"$f":"COUNTIF(D38:AH38,\"*\"&AI$7&\"*\")","v":0},{"$f":"COUNTIF(C38:AG38,\"*\"&AJ$7&\"*\")","v":0},{"$f":"COUNTIF(C38:AH38,\"*\"&AK$7&\"*\")","v":0},{"$f":"COUNTIF(C38:AG38,\"*\"&AL$7&\"*\")","v":0},{"$f":"COUNTIF(C38:AG38,\"*\"&AM$7&\"*\")","v":0},{"$f":"COUNTIF(C38:AG38,\"*\"&AN$7&\"*\")","v":0},{"$f":"COUNTIF(C38:AG38,\"*\"&AO$7&\"*\")","v":0},{"$f":"COUNTIF(C38:AG38,\"*\"&AP$7&\"*\")","v":0},{"$f":"COUNTIF(C38:AO38,\"*\"&AQ$7&\"*\")","v":0},null,null,null,"كانون الثاني"]
[32,"س 32",null,null,null,null,null,null,null,null,null,null,null,null,null,null,null,null,null,null,null,null,null,null,null,null,null,null,null,null,null,null,null,{"$f":"COUNTIF(C39:AG39,\"*\"&AH$7&\"*\")","v":0},{"$f":"COUNTIF(D39:AH39,\"*\"&AI$7&\"*\")","v":0},{"$f":"COUNTIF(C39:AG39,\"*\"&AJ$7&\"*\")","v":0},{"$f":"COUNTIF(C39:AH39,\"*\"&AK$7&\"*\")","v":0},{"$f":"COUNTIF(C39:AG39,\"*\"&AL$7&\"*\")","v":0},{"$f":"COUNTIF(C39:AG39,\"*\"&AM$7&\"*\")","v":0},{"$f":"COUNTIF(C39:AG39,\"*\"&AN$7&\"*\")","v":0},{"$f":"COUNTIF(C39:AG39,\"*\"&AO$7&\"*\")","v":0},{"$f":"COUNTIF(C39:AG39,\"*\"&AP$7&\"*\")","v":0},{"$f":"COUNTIF(C39:AO39,\"*\"&AQ$7&\"*\")","v":0},null,null,null,"شباط"]
[33,"س 33",null,null,null,null,null,null,null,null,null,null,null,null,null,null,null,null,null,null,null,null,null,null,null,null,null,null,null,null,null,null,null,{"$f":"COUNTIF(C40:AG40,\"*\"&AH$7&\"*\")","v":0},{"$f":"COUNTIF(D40:AH40,\"*\"&AI$7&\"*\")","v":0},{"$f":"COUNTIF(C40:AG40,\"*\"&AJ$7&\"*\")","v":0},{"$f":"COUNTIF(C40:AH40,\"*\"&AK$7&\"*\")","v":0},{"$f":"COUNTIF(C40:AG40,\"*\"&AL$7&\"*\")","v":0},{"$f":"COUNTIF(C40:AG40,\"*\"&AM$7&\"*\")","v":0},{"$f":"COUNTIF(C40:AG40,\"*\"&AN$7&\"*\")","v":0},{"$f":"COUNTIF(C40:AG40,\"*\"&AO$7&\"*\")","v":0},{"$f":"COUNTIF(C40:AG40,\"*\"&AP$7&\"*\")","v":0},{"$f":"COUNTIF(C40:AO40,\"*\"&AQ$7&\"*\")","v":0},null,null,null,"آذار"]
[34,"س 34",null,null,null,null,null,null,null,null,null,null,null,null,null,null,null,null,null,null,null,null,null,null,null,null,null,null,null,null,null,null,null,{"$f":"COUNTIF(C41:AG41,\"*\"&AH$7&\"*\")","v":0},{"$f":"COUNTIF(D41:AH41,\"*\"&AI$7&\"*\")","v":0},{"$f":"COUNTIF(C41:AG41,\"*\"&AJ$7&\"*\")","v":0},{"$f":"COUNTIF(C41:AH41,\"*\"&AK$7&\"*\")","v":0},{"$f":"COUNTIF(C41:AG41,\"*\"&AL$7&\"*\")","v":0},{"$f":"COUNTIF(C41:AG41,\"*\"&AM$7&\"*\")","v":0},{"$f":"COUNTIF(C41:AG41,\"*\"&AN$7&\"*\")","v":0},{"$f":"COUNTIF(C41:AG41,\"*\"&AO$7&\"*\")","v":0},{"$f":"COUNTIF(C41:AG41,\"*\"&AP$7&\"*\")","v":0},{"$f":"COUNTIF(C41:AO41,\"*\"&AQ$7&\"*\")","v":0},null,null,null,"نيسان"]
[35,"س 35",null,null,null,null,null,null,null,null,null,null,null,null,null,null,null,null,null,null,null,null,null,null,null,null,null,null,null,null,null,null,null,{"$f":"COUNTIF(C42:AG42,\"*\"&AH$7&\"*\")","v":0},{"$f":"COUNTIF(D42:AH42,\"*\"&AI$7&\"*\")","v":0},{"$f":"COUNTIF(C42:AG42,\"*\"&AJ$7&\"*\")","v":0},{"$f":"COUNTIF(C42:AH42,\"*\"&AK$7&\"*\")","v":0},{"$f":"COUNTIF(C42:AG42,\"*\"&AL$7&\"*\")","v":0},{"$f":"COUNTIF(C42:AG42,\"*\"&AM$7&\"*\")","v":0},{"$f":"COUNTIF(C42:AG42,\"*\"&AN$7&\"*\")","v":0},{"$f":"COUNTIF(C42:AG42,\"*\"&AO$7&\"*\")","v":0},{"$f":"COUNTIF(C42:AG42,\"*\"&AP$7&\"*\")","v":0},{"$f":"COUNTIF(C42:AO42,\"*\"&AQ$7&\"*\")","v":0},null,null,null,"أيار"]
[36,"س 36",null,null,null,null,null,null,null,null,null,null,null,null,null,null,null,null,null,null,null,null,null,null,null,null,null,null,null,null,null,null,null,{"$f":"COUNTIF(C43:AG43,\"*\"&AH$7&\"*\")","v":0},{"$f":"COUNTIF(D43:AH43,\"*\"&AI$7&\"*\")","v":0},{"$f":"COUNTIF(C43:AG43,\"*\"&AJ$7&\"*\")","v":0},{"$f":"COUNTIF(C43:AH43,\"*\"&AK$7&\"*\")","v":0},{"$f":"COUNTIF(C43:AG43,\"*\"&AL$7&\"*\")","v":0},{"$f":"COUNTIF(C43:AG43,\"*\"&AM$7&\"*\")","v":0},{"$f":"COUNTIF(C43:AG43,\"*\"&AN$7&\"*\")","v":0},{"$f":"COUNTIF(C43:AG43,\"*\"&AO$7&\"*\")","v":0},{"$f":"COUNTIF(C43:AG43,\"*\"&AP$7&\"*\")","v":0},{"$f":"COUNTIF(C43:AO43,\"*\"&AQ$7&\"*\")","v":0},null,null,null,"حزيران"]
[37,"س 37",null,null,null,null,null,null,null,null,null,null,null,null,null,null,null,null,null,null,null,null,null,null,null,null,null,null,null,null,null,null,null,{"$f":"COUNTIF(C44:AG44,\"*\"&AH$7&\"*\")","v":0},{"$f":"COUNTIF(D44:AH44,\"*\"&AI$7&\"*\")","v":0},{"$f":"COUNTIF(C44:AG44,\"*\"&AJ$7&\"*\")","v":0},{"$f":"COUNTIF(C44:AH44,\"*\"&AK$7&\"*\")","v":0},{"$f":"COUNTIF(C44:AG44,\"*\"&AL$7&\"*\")","v":0},{"$f":"COUNTIF(C44:AG44,\"*\"&AM$7&\"*\")","v":0},{"$f":"COUNTIF(C44:AG44,\"*\"&AN$7&\"*\")","v":0},{"$f":"COUNTIF(C44:AG44,\"*\"&AO$7&\"*\")","v":0},{"$f":"COUNTIF(C44:AG44,\"*\"&AP$7&\"*\")","v":0},{"$f":"COUNTIF(C44:AO44,\"*\"&AQ$7&\"*\")","v":0},null,null,null,"تموز"]
[38,"س 38",null,null,null,null,null,null,null,null,null,null,null,null,null,null,null,null,null,null,null,null,null,null,null,null,null,null,null,null,null,null,null,{"$f":"COUNTIF(C45:AG45,\"*\"&AH$7&\"*\")","v":0},{"$f":"COUNTIF(D45:AH45,\"*\"&AI$7&\"*\")","v":0},{"$f":"COUNTIF(C45:AG45,\"*\"&AJ$7&\"*\")","v":0},{"$f":"COUNTIF(C45:AH45,\"*\"&AK$7&\"*\")","v":0},{"$f":"COUNTIF(C45:AG45,\"*\"&AL$7&\"*\")","v":0},{"$f":"COUNTIF(C45:AG45,\"*\"&AM$7&\"*\")","v":0},{"$f":"COUNTIF(C45:AG45,\"*\"&AN$7&\"*\")","v":0},{"$f":"COUNTIF(C45:AG45,\"*\"&AO$7&\"*\")","v":0},{"$f":"COUNTIF(C45:AG45,\"*\"&AP$7&\"*\")","v":0},{"$f":"COUNTIF(C45:AO45,\"*\"&AQ$7&\"*\")","v":0},null,null,null,"آب"]
[39,"س 39",null,null,null,null,null,null,null,null,null,null,null,null,null,null,null,null,null,null,null,null,null,null,null,null,null,null,null,null,null,null,null,{"$f":"COUNTIF(C46:AG46,\"*\"&AH$7&\"*\")","v":0},{"$f":"COUNTIF(D46:AH46,\"*\"&AI$7&\"*\")","v":0},{"$f":"COUNTIF(C46:AG46,\"*\"&AJ$7&\"*\")","v":0},{"$f":"COUNTIF(C46:AH46,\"*\"&AK$7&\"*\")","v":0},{"$f":"COUNTIF(C46:AG46,\"*\"&AL$7&\"*\")","v":0},{"$f":"COUNTIF(C46:AG46,\"*\"&AM$7&\"*\")","v":0},{"$f":"COUNTIF(C46:AG46,\"*\"&AN$7&\"*\")","v":0},{"$f":"COUNTIF(C46:AG46,\"*\"&AO$7&\"*\")","v":0},{"$f":"COUNTIF(C46:AG46,\"*\"&AP$7&\"*\")","v":0},{"$f":"COUNTIF(C46:AO46,\"*\"&AQ$7&\"*\")","v":0},null,null,null,"أيلول"]
[40,"س 40",null,null,null,null,null,null,null,null,null,null,null,null,null,null,null,null,null,null,null,null,null,null,null,null,null,null,null,null,null,null,null,{"$f":"COUNTIF(C47:AG47,\"*\"&AH$7&\"*\")","v":0},{"$f":"COUNTIF(D47:AH47,\"*\"&AI$7&\"*\")","v":0},{"$f":"COUNTIF(C47:AG47,\"*\"&AJ$7&\"*\")","v":0},{"$f":"COUNTIF(C47:AH47,\"*\"&AK$7&\"*\")","v":0},{"$f":"COUNTIF(C47:AG47,\"*\"&AL$7&\"*\")","v":0},{"$f":"COUNTIF(C47:AG47,\"*\"&AM$7&\"*\")","v":0},{"$f":"COUNTIF(C47:AG47,\"*\"&AN$7&\"*\")","v":0},{"$f":"COUNTIF(C47:AG47,\"*\"&AO$7&\"*\")","v":0},{"$f":"COUNTIF(C47:AG47,\"*\"&AP$7&\"*\")","v":0},{"$f":"COUNTIF(C47:AO47,\"*\"&AQ$7&\"*\")","v":0},null,null,null,"تشرين الأول"]
[41,"س 41",null,null,null,null,null,null,null,null,null,null,null,null,null,null,null,null,null,null,null,null,null,null,null,null,null,null,null,null,null,null,null,{"$f":"COUNTIF(C48:AG48,\"*\"&AH$7&\"*\")","v":0},{"$f":"COUNTIF(D48:AH48,\"*\"&AI$7&\"*\")","v":0},{"$f":"COUNTIF(C48:AG48,\"*\"&AJ$7&\"*\")","v":0},{"$f":"COUNTIF(C48:AH48,\"*\"&AK$7&\"*\")","v":0},{"$f":"COUNTIF(C48:AG48,\"*\"&AL$7&\"*\")","v":0},{"$f":"COUNTIF(C48:AG48,\"*\"&AM$7&\"*\")","v":0},{"$f":"COUNTIF(C48:AG48,\"*\"&AN$7&\"*\")","v":0},{"$f":"COUNTIF(C48:AG48,\"*\"&AO$7&\"*\")","v":0},{"$f":"COUNTIF(C48:AG48,\"*\"&AP$7&\"*\")","v":0},{"$f":"COUNTIF(C48:AO48,\"*\"&AQ$7&\"*\")","v":0},null,null,null,"تشرين الثاني"]
[42,"س 42",null,null,null,null,null,null,null,null,null,null,null,null,null,null,null,null,null,null,null,null,null,null,null,null,null,null,null,null,null,null,null,{"$f":"COUNTIF(C49:AG49,\"*\"&AH$7&\"*\")","v":0},{"$f":"COUNTIF(D49:AH49,\"*\"&AI$7&\"*\")","v":0},{"$f":"COUNTIF(C49:AG49,\"*\"&AJ$7&\"*\")","v":0},{"$f":"COUNTIF(C49:AH49,\"*\"&AK$7&\"*\")","v":0},{"$f":"COUNTIF(C49:AG49,\"*\"&AL$7&\"*\")","v":0},{"$f":"COUNTIF(C49:AG49,\"*\"&AM$7&\"*\")","v":0},{"$f":"COUNTIF(C49:AG49,\"*\"&AN$7&\"*\")","v":0},{"$f":"COUNTIF(C49:AG49,\"*\"&AO$7&\"*\")","v":0},{"$f":"COUNTIF(C49:AG49,\"*\"&AP$7&\"*\")","v":0},{"$f":"COUNTIF(C49:AO49,\"*\"&AQ$7&\"*\")","v":0},null,null,null,"كانون الأول"]
[43,"س 43",null,null,null,null,null,null,null,null,null,null,null,null,null,null,null,null,null,null,null,null,null,null,null,null,null,null,null,null,null,null,null,{"$f":"COUNTIF(C50:AG50,\"*\"&AH$7&\"*\")","v":0},{"$f":"COUNTIF(D50:AH50,\"*\"&AI$7&\"*\")","v":0},{"$f":"COUNTIF(C50:AG50,\"*\"&AJ$7&\"*\")","v":0},{"$f":"COUNTIF(C50:AH50,\"*\"&AK$7&\"*\")","v":0},{"$f":"COUNTIF(C50:AG50,\"*\"&AL$7&\"*\")","v":0},{"$f":"COUNTIF(C50:AG50,\"*\"&AM$7&\"*\")","v":0},{"$f":"COUNTIF(C50:AG50,\"*\"&AN$7&\"*\")","v":0},{"$f":"COUNTIF(C50:AG50,\"*\"&AO$7&\"*\")","v":0},{"$f":"COUNTIF(C50:AG50,\"*\"&AP$7&\"*\")","v":0},{"$f":"COUNTIF(C50:AO50,\"*\"&AQ$7&\"*\")","v":0}]
[44,"س 44",null,null,null,null,null,null,null,null,null,null,null,null,null,null,null,null,null,null,null,null,null,null,null,null,null,null,null,null,null,null,null,{"$f":"COUNTIF(C51:AG51,\"*\"&AH$7&\"*\")","v":0},{"$f":"COUNTIF(D51:AH51,\"*\"&AI$7&\"*\")","v":0},{"$f":"COUNTIF(C51:AG51,\"*\"&AJ$7&\"*\")","v":0},{"$f":"COUNTIF(C51:AH51,\"*\"&AK$7&\"*\")","v":0},{"$f":"COUNTIF(C51:AG51,\"*\"&AL$7&\"*\")","v":0},{"$f":"COUNTIF(C51:AG51,\"*\"&AM$7&\"*\")","v":0},{"$f":"COUNTIF(C51:AG51,\"*\"&AN$7&\"*\")","v":0},{"$f":"COUNTIF(C51:AG51,\"*\"&AO$7&\"*\")","v":0},{"$f":"COUNTIF(C51:AG51,\"*\"&AP$7&\"*\")","v":0},{"$f":"COUNTIF(C51:AO51,\"*\"&AQ$7&\"*\")","v":0}]
[45,"س 45",null,null,null,null,null,null,null,null,null,null,null,null,null,null,null,null,null,null,null,null,null,null,null,null,null,null,null,null,null,null,null,{"$f":"COUNTIF(C52:AG52,\"*\"&AH$7&\"*\")","v":0},{"$f":"COUNTIF(D52:AH52,\"*\"&AI$7&\"*\")","v":0},{"$f":"COUNTIF(C52:AG52,\"*\"&AJ$7&\"*\")","v":0},{"$f":"COUNTIF(C52:AH52,\"*\"&AK$7&\"*\")","v":0},{"$f":"COUNTIF(C52:AG52,\"*\"&AL$7&\"*\")","v":0},{"$f":"COUNTIF(C52:AG52,\"*\"&AM$7&\"*\")","v":0},{"$f":"COUNTIF(C52:AG52,\"*\"&AN$7&\"*\")","v":0},{"$f":"COUNTIF(C52:AG52,\"*\"&AO$7&\"*\")","v":0},{"$f":"COUNTIF(C52:AG52,\"*\"&AP$7&\"*\")","v":0},{"$f":"COUNTIF(C52:AO52,\"*\"&AQ$7&\"*\")","v":0}]
[46,"س 46",null,null,null,null,null,null,null,null,null,null,null,null,null,null,null,null,null,null,null,null,null,null,null,null,null,null,null,null,null,null,null,{"$f":"COUNTIF(C53:AG53,\"*\"&AH$7&\"*\")","v":0},{"$f":"COUNTIF(D53:AH53,\"*\"&AI$7&\"*\")","v":0},{"$f":"COUNTIF(C53:AG53,\"*\"&AJ$7&\"*\")","v":0},{"$f":"COUNTIF(C53:AH53,\"*\"&AK$7&\"*\")","v":0},{"$f":"COUNTIF(C53:AG53,\"*\"&AL$7&\"*\")","v":0},{"$f":"COUNTIF(C53:AG53,\"*\"&AM$7&\"*\")","v":0},{"$f":"COUNTIF(C53:AG53,\"*\"&AN$7&\"*\")","v":0},{"$f":"COUNTIF(C53:AG53,\"*\"&AO$7&\"*\")","v":0},{"$f":"COUNTIF(C53:AG53,\"*\"&AP$7&\"*\")","v":0},{"$f":"COUNTIF(C53:AO53,\"*\"&AQ$7&\"*\")","v":0}]
[47,"س 47",null,null,null,null,null,null,null,null,null,null,null,null,null,null,null,null,null,null,null,null,null,null,null,null,null,null,null,null,null,null,null,{"$f":"COUNTIF(C54:AG54,\"*\"&AH$7&\"*\")","v":0},{"$f":"COUNTIF(D54:AH54,\"*\"&AI$7&\"*\")","v":0},{"$f":"COUNTIF(C54:AG54,\"*\"&AJ$7&\"*\")","v":0},{"$f":"COUNTIF(C54:AH54,\"*\"&AK$7&\"*\")","v":0},{"$f":"COUNTIF(C54:AG54,\"*\"&AL$7&\"*\")","v":0},{"$f":"COUNTIF(C54:AG54,\"*\"&AM$7&\"*\")","v":0},{"$f":"COUNTIF(C54:AG54,\"*\"&AN$7&\"*\")","v":0},{"$f":"COUNTIF(C54:AG54,\"*\"&AO$7&\"*\")","v":0},{"$f":"COUNTIF(C54:AG54,\"*\"&AP$7&\"*\")","v":0},{"$f":"COUNTIF(C54:AO54,\"*\"&AQ$7&\"*\")","v":0}]
[48,"س 48",null,null,null,null,null,null,null,null,null,null,null,null,null,null,null,null,null,null,null,null,null,null,null,null,null,null,null,null,null,null,null,{"$f":"COUNTIF(C55:AG55,\"*\"&AH$7&\"*\")","v":0},{"$f":"COUNTIF(D55:AH55,\"*\"&AI$7&\"*\")","v":0},{"$f":"COUNTIF(C55:AG55,\"*\"&AJ$7&\"*\")","v":0},{"$f":"COUNTIF(C55:AH55,\"*\"&AK$7&\"*\")","v":0},{"$f":"COUNTIF(C55:AG55,\"*\"&AL$7&\"*\")","v":0},{"$f":"COUNTIF(C55:AG55,\"*\"&AM$7&\"*\")","v":0},{"$f":"COUNTIF(C55:AG55,\"*\"&AN$7&\"*\")","v":0},{"$f":"COUNTIF(C55:AG55,\"*\"&AO$7&\"*\")","v":0},{"$f":"COUNTIF(C55:AG55,\"*\"&AP$7&\"*\")","v":0},{"$f":"COUNTIF(C55:AO55,\"*\"&AQ$7&\"*\")","v":0}]
[49,"س 49",null,null,null,null,null,null,null,null,null,null,null,null,null,null,null,null,null,null,null,null,null,null,null,null,null,null,null,null,null,null,null,{"$f":"COUNTIF(C56:AG56,\"*\"&AH$7&\"*\")","v":0},{"$f":"COUNTIF(D56:AH56,\"*\"&AI$7&\"*\")","v":0},{"$f":"COUNTIF(C56:AG56,\"*\"&AJ$7&\"*\")","v":0},{"$f":"COUNTIF(C56:AH56,\"*\"&AK$7&\"*\")","v":0},{"$f":"COUNTIF(C56:AG56,\"*\"&AL$7&\"*\")","v":0},{"$f":"COUNTIF(C56:AG56,\"*\"&AM$7&\"*\")","v":0},{"$f":"COUNTIF(C56:AG56,\"*\"&AN$7&\"*\")","v":0},{"$f":"COUNTIF(C56:AG56,\"*\"&AO$7&\"*\")","v":0},{"$f":"COUNTIF(C56:AG56,\"*\"&AP$7&\"*\")","v":0},{"$f":"COUNTIF(C56:AO56,\"*\"&AQ$7&\"*\")","v":0}]
[50,"س 50",null,null,null,null,null,null,null,null,null,null,null,null,null,null,null,null,null,null,null,null,null,null,null,null,null,null,null,null,null,null,null,{"$f":"COUNTIF(C57:AG57,\"*\"&AH$7&\"*\")","v":0},{"$f":"COUNTIF(D57:AH57,\"*\"&AI$7&\"*\")","v":0},{"$f":"COUNTIF(C57:AG57,\"*\"&AJ$7&\"*\")","v":0},{"$f":"COUNTIF(C57:AH57,\"*\"&AK$7&\"*\")","v":0},{"$f":"COUNTIF(C57:AG57,\"*\"&AL$7&\"*\")","v":0},{"$f":"COUNTIF(C57:AG57,\"*\"&AM$7&\"*\")","v":0},{"$f":"COUNTIF(C57:AG57,\"*\"&AN$7&\"*\")","v":0},{"$f":"COUNTIF(C57:AG57,\"*\"&AO$7&\"*\")","v":0},{"$f":"COUNTIF(C57:AG57,\"*\"&AP$7&\"*\")","v":0},{"$f":"COUNTIF(C57:AO57,\"*\"&AQ$7&\"*\")","v":0}]
[51,null,null,null,null,null,null,null,null,null,null,null,null,null,null,null,null,null,null,null,null,null,null,null,null,null,null,null,null,null,null,null,null,{"$f":"COUNTIF(C58:AG58,\"*\"&AH$7&\"*\")","v":0},{"$f":"COUNTIF(D58:AH58,\"*\"&AI$7&\"*\")","v":0},{"$f":"COUNTIF(C58:AG58,\"*\"&AJ$7&\"*\")","v":0},{"$f":"COUNTIF(C58:AH58,\"*\"&AK$7&\"*\")","v":0},{"$f":"COUNTIF(C58:AG58,\"*\"&AL$7&\"*\")","v":0},{"$f":"COUNTIF(C58:AG58,\"*\"&AM$7&\"*\")","v":0},{"$f":"COUNTIF(C58:AG58,\"*\"&AN$7&\"*\")","v":0},{"$f":"COUNTIF(C58:AG58,\"*\"&AO$7&\"*\")","v":0},{"$f":"COUNTIF(C58:AG58,\"*\"&AP$7&\"*\")","v":0},{"$f":"COUNTIF(C58:AO58,\"*\"&AQ$7&\"*\")","v":0}]
[52,null,null,null,null,null,null,null,null,null,null,null,null,null,null,null,null,null,null,null,null,null,null,null,null,null,null,null,null,null,null,null,null,{"$f":"COUNTIF(C59:AG59,\"*\"&AH$7&\"*\")","v":0},{"$f":"COUNTIF(D59:AH59,\"*\"&AI$7&\"*\")","v":0},{"$f":"COUNTIF(C59:AG59,\"*\"&AJ$7&\"*\")","v":0},{"$f":"COUNTIF(C59:AH59,\"*\"&AK$7&\"*\")","v":0},{"$f":"COUNTIF(C59:AG59,\"*\"&AL$7&\"*\")","v":0},{"$f":"COUNTIF(C59:AG59,\"*\"&AM$7&\"*\")","v":0},{"$f":"COUNTIF(C59:AG59,\"*\"&AN$7&\"*\")","v":0},{"$f":"COUNTIF(C59:AG59,\"*\"&AO$7&\"*\")","v":0},{"$f":"COUNTIF(C59:AG59,\"*\"&AP$7&\"*\")","v":0},{"$f":"COUNTIF(C59:AO59,\"*\"&AQ$7&\"*\")","v":0}]
[53,null,null,null,null,null,null,null,null,null,null,null,null,null,null,null,null,null,null,null,null,null,null,null,null,null,null,null,null,null,null,null,null,{"$f":"COUNTIF(C60:AG60,\"*\"&AH$7&\"*\")","v":0},{"$f":"COUNTIF(D60:AH60,\"*\"&AI$7&\"*\")","v":0},{"$f":"COUNTIF(C60:AG60,\"*\"&AJ$7&\"*\")","v":0},{"$f":"COUNTIF(C60:AH60,\"*\"&AK$7&\"*\")","v":0},{"$f":"COUNTIF(C60:AG60,\"*\"&AL$7&\"*\")","v":0},{"$f":"COUNTIF(C60:AG60,\"*\"&AM$7&\"*\")","v":0},{"$f":"COUNTIF(C60:AG60,\"*\"&AN$7&\"*\")","v":0},{"$f":"COUNTIF(C60:AG60,\"*\"&AO$7&\"*\")","v":0},{"$f":"COUNTIF(C60:AG60,\"*\"&AP$7&\"*\")","v":0},{"$f":"COUNTIF(C60:AO60,\"*\"&AQ$7&\"*\")","v":0}]
[54,null,null,null,null,null,null,null,null,null,null,null,null,null,null,null,null,null,null,null,null,null,null,null,null,null,null,null,null,null,null,null,null,{"$f":"COUNTIF(C61:AG61,\"*\"&AH$7&\"*\")","v":0},{"$f":"COUNTIF(D61:AH61,\"*\"&AI$7&\"*\")","v":0},{"$f":"COUNTIF(C61:AG61,\"*\"&AJ$7&\"*\")","v":0},{"$f":"COUNTIF(C61:AH61,\"*\"&AK$7&\"*\")","v":0},{"$f":"COUNTIF(C61:AG61,\"*\"&AL$7&\"*\")","v":0},{"$f":"COUNTIF(C61:AG61,\"*\"&AM$7&\"*\")","v":0},{"$f":"COUNTIF(C61:AG61,\"*\"&AN$7&\"*\")","v":0},{"$f":"COUNTIF(C61:AG61,\"*\"&AO$7&\"*\")","v":0},{"$f":"COUNTIF(C61:AG61,\"*\"&AP$7&\"*\")","v":0},{"$f":"COUNTIF(C61:AO61,\"*\"&AQ$7&\"*\")","v":0}]
[55,null,null,null,null,null,null,null,null,null,null,null,null,null,null,null,null,null,null,null,null,null,null,null,null,null,null,null,null,null,null,null,null,{"$f":"COUNTIF(C62:AG62,\"*\"&AH$7&\"*\")","v":0},{"$f":"COUNTIF(D62:AH62,\"*\"&AI$7&\"*\")","v":0},{"$f":"COUNTIF(C62:AG62,\"*\"&AJ$7&\"*\")","v":0},{"$f":"COUNTIF(C62:AH62,\"*\"&AK$7&\"*\")","v":0},{"$f":"COUNTIF(C62:AG62,\"*\"&AL$7&\"*\")","v":0},{"$f":"COUNTIF(C62:AG62,\"*\"&AM$7&\"*\")","v":0},{"$f":"COUNTIF(C62:AG62,\"*\"&AN$7&\"*\")","v":0},{"$f":"COUNTIF(C62:AG62,\"*\"&AO$7&\"*\")","v":0},{"$f":"COUNTIF(C62:AG62,\"*\"&AP$7&\"*\")","v":0},{"$f":"COUNTIF(C62:AO62,\"*\"&AQ$7&\"*\")","v":0}]
[56,null,null,null,null,null,null,null,null,null,null,null,null,null,null,null,null,null,null,null,null,null,null,null,null,null,null,null,null,null,null,null,null,{"$f":"COUNTIF(C63:AG63,\"*\"&AH$7&\"*\")","v":0},{"$f":"COUNTIF(D63:AH63,\"*\"&AI$7&\"*\")","v":0},{"$f":"COUNTIF(C63:AG63,\"*\"&AJ$7&\"*\")","v":0},{"$f":"COUNTIF(C63:AH63,\"*\"&AK$7&\"*\")","v":0},{"$f":"COUNTIF(C63:AG63,\"*\"&AL$7&\"*\")","v":0},{"$f":"COUNTIF(C63:AG63,\"*\"&AM$7&\"*\")","v":0},{"$f":"COUNTIF(C63:AG63,\"*\"&AN$7&\"*\")","v":0},{"$f":"COUNTIF(C63:AG63,\"*\"&AO$7&\"*\")","v":0},{"$f":"COUNTIF(C63:AG63,\"*\"&AP$7&\"*\")","v":0},{"$f":"COUNTIF(C63:AO63,\"*\"&AQ$7&\"*\")","v":0}]
[57,null,null,null,null,null,null,null,null,null,null,null,null,null,null,null,null,null,null,null,null,null,null,null,null,null,null,null,null,null,null,null,null,{"$f":"COUNTIF(C64:AG64,\"*\"&AH$7&\"*\")","v":0},{"$f":"COUNTIF(D64:AH64,\"*\"&AI$7&\"*\")","v":0},{"$f":"COUNTIF(C64:AG64,\"*\"&AJ$7&\"*\")","v":0},{"$f":"COUNTIF(C64:AH64,\"*\"&AK$7&\"*\")","v":0},{"$f":"COUNTIF(C64:AG64,\"*\"&AL$7&\"*\")","v":0},{"$f":"COUNTIF(C64:AG64,\"*\"&AM$7&\"*\")","v":0},{"$f":"COUNTIF(C64:AG64,\"*\"&AN$7&\"*\")","v":0},{"$f":"COUNTIF(C64:AG64,\"*\"&AO$7&\"*\")","v":0},{"$f":"COUNTIF(C64:AG64,\"*\"&AP$7&\"*\")","v":0},{"$f":"COUNTIF(C64:AO64,\"*\"&AQ$7&\"*\")","v":0}]
[58,null,null,null,null,null,null,null,null,null,null,null,null,null,null,null,null,null,null,null,null,null,null,null,null,null,null,null,null,null,null,null,null,{"$f":"COUNTIF(C65:AG65,\"*\"&AH$7&\"*\")","v":0},{"$f":"COUNTIF(D65:AH65,\"*\"&AI$7&\"*\")","v":0},{"$f":"COUNTIF(C65:AG65,\"*\"&AJ$7&\"*\")","v":0},{"$f":"COUNTIF(C65:AH65,\"*\"&AK$7&\"*\")","v":0},{"$f":"COUNTIF(C65:AG65,\"*\"&AL$7&\"*\")","v":0},{"$f":"COUNTIF(C65:AG65,\"*\"&AM$7&\"*\")","v":0},{"$f":"COUNTIF(C65:AG65,\"*\"&AN$7&\"*\")","v":0},{"$f":"COUNTIF(C65:AG65,\"*\"&AO$7&\"*\")","v":0},{"$f":"COUNTIF(C65:AG65,\"*\"&AP$7&\"*\")","v":0},{"$f":"COUNTIF(C65:AO65,\"*\"&AQ$7&\"*\")","v":0}]
[59,null,null,null,null,null,null,null,null,null,null,null,null,null,null,null,null,null,null,null,null,null,null,null,null,null,null,null,null,null,null,null,null,{"$f":"COUNTIF(C66:AG66,\"*\"&AH$7&\"*\")","v":0},{"$f":"COUNTIF(D66:AH66,\"*\"&AI$7&\"*\")","v":0},{"$f":"COUNTIF(C66:AG66,\"*\"&AJ$7&\"*\")","v":0},{"$f":"COUNTIF(C66:AH66,\"*\"&AK$7&\"*\")","v":0},{"$f":"COUNTIF(C66:AG66,\"*\"&AL$7&\"*\")","v":0},{"$f":"COUNTIF(C66:AG66,\"*\"&AM$7&\"*\")","v":0},{"$f":"COUNTIF(C66:AG66,\"*\"&AN$7&\"*\")","v":0},{"$f":"COUNTIF(C66:AG66,\"*\"&AO$7&\"*\")","v":0},{"$f":"COUNTIF(C66:AG66,\"*\"&AP$7&\"*\")","v":0},{"$f":"COUNTIF(C66:AO66,\"*\"&AQ$7&\"*\")","v":0}]
[60,null,null,null,null,null,null,null,null,null,null,null,null,null,null,null,null,null,null,null,null,null,null,null,null,null,null,null,null,null,null,null,null,{"$f":"COUNTIF(C67:AG67,\"*\"&AH$7&\"*\")","v":0},{"$f":"COUNTIF(D67:AH67,\"*\"&AI$7&\"*\")","v":0},{"$f":"COUNTIF(C67:AG67,\"*\"&AJ$7&\"*\")","v":0},{"$f":"COUNTIF(C67:AH67,\"*\"&AK$7&\"*\")","v":0},{"$f":"COUNTIF(C67:AG67,\"*\"&AL$7&\"*\")","v":0},{"$f":"COUNTIF(C67:AG67,\"*\"&AM$7&\"*\")","v":0},{"$f":"COUNTIF(C67:AG67,\"*\"&AN$7&\"*\")","v":0},{"$f":"COUNTIF(C67:AG67,\"*\"&AO$7&\"*\")","v":0},{"$f":"COUNTIF(C67:AG67,\"*\"&AP$7&\"*\")","v":0},{"$f":"COUNTIF(C67:AO67,\"*\"&AQ$7&\"*\")","v":0}]
[61,null,null,null,null,null,null,null,null,null,null,null,null,null,null,null,null,null,null,null,null,null,null,null,null,null,null,null,null,null,null,null,null,{"$f":"COUNTIF(C68:AG68,\"*\"&AH$7&\"*\")","v":0},{"$f":"COUNTIF(D68:AH68,\"*\"&AI$7&\"*\")","v":0},{"$f":"COUNTIF(C68:AG68,\"*\"&AJ$7&\"*\")","v":0},{"$f":"COUNTIF(C68:AH68,\"*\"&AK$7&\"*\")","v":0},{"$f":"COUNTIF(C68:AG68,\"*\"&AL$7&\"*\")","v":0},{"$f":"COUNTIF(C68:AG68,\"*\"&AM$7&\"*\")","v":0},{"$f":"COUNTIF(C68:AG68,\"*\"&AN$7&\"*\")","v":0},{"$f":"COUNTIF(C68:AG68,\"*\"&AO$7&\"*\")","v":0},{"$f":"COUNTIF(C68:AG68,\"*\"&AP$7&\"*\")","v":0},{"$f":"COUNTIF(C68:AO68,\"*\"&AQ$7&\"*\")","v":0}]
[62,null,null,null,null,null,null,null,null,null,null,null,null,null,null,null,null,null,null,null,null,null,null,null,null,null,null,null,null,null,null,null,null,{"$f":"COUNTIF(C69:AG69,\"*\"&AH$7&\"*\")","v":0},{"$f":"COUNTIF(D69:AH69,\"*\"&AI$7&\"*\")","v":0},{"$f":"COUNTIF(C69:AG69,\"*\"&AJ$7&\"*\")","v":0},{"$f":"COUNTIF(C69:AH69,\"*\"&AK$7&\"*\")","v":0},{"$f":"COUNTIF(C69:AG69,\"*\"&AL$7&\"*\")","v":0},{"$f":"COUNTIF(C69:AG69,\"*\"&AM$7&\"*\")","v":0},{"$f":"COUNTIF(C69:AG69,\"*\"&AN$7&\"*\")","v":0},{"$f":"COUNTIF(C69:AG69,\"*\"&AO$7&\"*\")","v":0},{"$f":"COUNTIF(C69:AG69,\"*\"&AP$7&\"*\")","v":0},{"$f":"COUNTIF(C69:AO69,\"*\"&AQ$7&\"*\")","v":0}]
[63,null,null,null,null,null,null,null,null,null,null,null,null,null,null,null,null,null,null,null,null,null,null,null,null,null,null,null,null,null,null,null,null,{"$f":"COUNTIF(C70:AG70,\"*\"&AH$7&\"*\")","v":0},{"$f":"COUNTIF(D70:AH70,\"*\"&AI$7&\"*\")","v":0},{"$f":"COUNTIF(C70:AG70,\"*\"&AJ$7&\"*\")","v":0},{"$f":"COUNTIF(C70:AH70,\"*\"&AK$7&\"*\")","v":0},{"$f":"COUNTIF(C70:AG70,\"*\"&AL$7&\"*\")","v":0},{"$f":"COUNTIF(C70:AG70,\"*\"&AM$7&\"*\")","v":0},{"$f":"COUNTIF(C70:AG70,\"*\"&AN$7&\"*\")","v":0},{"$f":"COUNTIF(C70:AG70,\"*\"&AO$7&\"*\")","v":0},{"$f":"COUNTIF(C70:AG70,\"*\"&AP$7&\"*\")","v":0},{"$f":"COUNTIF(C70:AO70,\"*\"&AQ$7&\"*\")","v":0}]
[64,null,null,null,null,null,null,null,null,null,null,null,null,null,null,null,null,null,null,null,null,null,null,null,null,null,null,null,null,null,null,null,null,{"$f":"COUNTIF(C71:AG71,\"*\"&AH$7&\"*\")","v":0},{"$f":"COUNTIF(D71:AH71,\"*\"&AI$7&\"*\")","v":0},{"$f":"COUNTIF(C71:AG71,\"*\"&AJ$7&\"*\")","v":0},{"$f":"COUNTIF(C71:AH71,\"*\"&AK$7&\"*\")","v":0},{"$f":"COUNTIF(C71:AG71,\"*\"&AL$7&\"*\")","v":0},{"$f":"COUNTIF(C71:AG71,\"*\"&AM$7&\"*\")","v":0},{"$f":"COUNTIF(C71:AG71,\"*\"&AN$7&\"*\")","v":0},{"$f":"COUNTIF(C71:AG71,\"*\"&AO$7&\"*\")","v":0},{"$f":"COUNTIF(C71:AG71,\"*\"&AP$7&\"*\")","v":0},{"$f":"COUNTIF(C71:AO71,\"*\"&AQ$7&\"*\")","v":0}]
[null,null,null,null,null,null,null,null,null,null,null,null,null,null,null,null,null,null,null,null,null,null,null,null,null,null,null,null,null,null,null,null,null,{"$f":"COUNTIF(C72:AG72,\"*\"&AH$7&\"*\")","v":0},{"$f":"COUNTIF(D72:AH72,\"*\"&AI$7&\"*\")","v":0},{"$f":"COUNTIF(C72:AG72,\"*\"&AJ$7&\"*\")","v":0},{"$f":"COUNTIF(C72:AH72,\"*\"&AK$7&\"*\")","v":0},{"$f":"COUNTIF(C72:AG72,\"*\"&AL$7&\"*\")","v":0},{"$f":"COUNTIF(C72:AG72,\"*\"&AM$7&\"*\")","v":0},{"$f":"COUNTIF(C72:AG72,\"*\"&AN$7&\"*\")","v":0},{"$f":"COUNTIF(C72:AG72,\"*\"&AO$7&\"*\")","v":0},{"$f":"COUNTIF(C72:AG72,\"*\"&AP$7&\"*\")","v":0},{"$f":"COUNTIF(C72:AO72,\"*\"&AQ$7&\"*\")","v":0}]
[1,null,null,null,null,null,null,null,null,null,null,null,null,null,null,null,null,null,null,null,null,null,null,null,null,null,null,null,null,null,null,null,null,{"$f":"COUNTIF(C73:AG73,\"*\"&AH$7&\"*\")","v":0},{"$f":"COUNTIF(D73:AH73,\"*\"&AI$7&\"*\")","v":0},{"$f":"COUNTIF(C73:AG73,\"*\"&AJ$7&\"*\")","v":0},{"$f":"COUNTIF(C73:AH73,\"*\"&AK$7&\"*\")","v":0},{"$f":"COUNTIF(C73:AG73,\"*\"&AL$7&\"*\")","v":0},{"$f":"COUNTIF(C73:AG73,\"*\"&AM$7&\"*\")","v":0},{"$f":"COUNTIF(C73:AG73,\"*\"&AN$7&\"*\")","v":0},{"$f":"COUNTIF(C73:AG73,\"*\"&AO$7&\"*\")","v":0},{"$f":"COUNTIF(C73:AG73,\"*\"&AP$7&\"*\")","v":0},{"$f":"COUNTIF(C73:AO73,\"*\"&AQ$7&\"*\")","v":0}]

{"sheet":"خلاصة شهر","index":1,"n_rows":10,"n_cols":11,"rows_kept":10,"cut":false,"hidden":false,"merged":[[4,0,6,0],[4,1,6,1],[4,2,4,10],[5,2,5,5],[5,6,5,10]]}
[]
[]
[]
[]
["م","الاسم","ديسمبر"]
[null,null,"المجموع الاجازات ",null,null,null,"العقوبات "]
[null,null,"عرضية","مرضية ","عدم صرف","سنوية","تنبيه","انذار","حسم","مغادرات","تأخير"]
[1,"س 1",null,2,3,null,2,null,1]
[2,"س 2",null,1]
[3,"س 5",null,null,1,1]

{"sheet":"خلاصة نهائية","index":2,"n_rows":97,"n_cols":119,"rows_kept":97,"cut":false,"hidden":false,"merged":[[4,110,4,118],[5,110,5,113],[5,114,5,118],[5,83,5,86],[5,87,5,91],[5,92,5,95],[5,96,5,100],[5,101,5,104],[5,105,5,109],[4,83,4,91],[4,92,4,100],[4,101,4,109],[5,78,5,82],[4,65,4,73],[5,47,5,50],[5,51,5,55],[4,56,4,64],[4,47,4,55],[4,74,4,82],[5,56,5,59],[5,60,5,64],[5,65,5,68],[5,69,5,73],[5,74,5,77],[5,11,5,14],[5,15,5,19],[4,20,4,28],[4,29,4,37],[4,38,4,46],[5,20,5,23],[5,24,5,28],[5,29,5,32],[5,33,5,37],[4,11,4,19],[5,38,5,41],[5,42,5,46],[5,2,5,5],[4,2,4,10],[5,6,5,10],[4,0,6,0],[4,1,6,1]]}
[]
[]
[null,"أيار"]
[]
["م","الاسم","يناير",null,null,null,null,null,null,null,null,"فبراير",null,null,null,null,null,null,null,null,"مارس",null,null,null,null,null,null,null,null,"أبريل",null,null,null,null,null,null,null,null,"مايو",null,null,null,null,null,null,null,null,"يونيو",null,null,null,null,null,null,null,null,"يوليو",null,null,null,null,null,null,null,null,"أغسطس",null,null,null,null,null,null,null,null,"سبتمبر",null,null,null,null,null,null,null,null,"أكتوبر",null,null,null,null,null,null,null,null,"نوفمبر",null,null,null,null,null,null,null,null,"ديسمبر",null,null,null,null,null,null,null,null,"مجموع الغياب السنوي "]
[null,null,"المجموع الاجازات ",null,null,null,"العقوبات ",null,null,null,null,"المجموع الاجازات ",null,null,null,"العقوبات ",null,null,null,null,"المجموع الاجازات ",null,null,null,"العقوبات ",null,null,null,null,"المجموع الاجازات ",null,null,null,"العقوبات ",null,null,null,null,"المجموع الاجازات ",null,null,null,"العقوبات ",null,null,null,null,"المجموع الاجازات ",null,null,null,"العقوبات ",null,null,null,null,"المجموع الاجازات ",null,null,null,"العقوبات ",null,null,null,null,"المجموع الاجازات ",null,null,null,"العقوبات ",null,null,null,null,"المجموع الاجازات ",null,null,null,"العقوبات ",null,null,null,null,"المجموع الاجازات ",null,null,null,"العقوبات ",null,null,null,null,"المجموع الاجازات ",null,null,null,"العقوبات ",null,null,null,null,"المجموع الاجازات ",null,null,null,"العقوبات ",null,null,null,null,"المجموع الاجازات ",null,null,null,"العقوبات "]
[null,null,"عرضية","مرضية ","عدم صرف","سنوية","تنبيه","انذار","حسم","مغادرات","تأخير","عرضية","مرضية ","عدم صرف","سنوية","تنبيه","انذار","حسم","مغادرات","تأخير","عرضية","مرضية ","عدم صرف","سنوية","تنبيه","انذار","حسم","مغادرات","تأخير","عرضية","مرضية ","عدم صرف","سنوية","تنبيه","انذار","حسم","مغادرات","تأخير","عرضية","مرضية ","عدم صرف","سنوية","تنبيه","انذار","حسم","مغادرات","تأخير","عرضية","مرضية ","عدم صرف","سنوية","تنبيه","انذار","حسم","مغادرات","تأخير","عرضية","مرضية ","عدم صرف","سنوية","تنبيه","انذار","حسم","مغادرات","تأخير","عرضية","مرضية ","عدم صرف","سنوية","تنبيه","انذار","حسم","مغادرات","تأخير","عرضية","مرضية ","عدم صرف","سنوية","تنبيه","انذار","حسم","مغادرات","تأخير","عرضية","مرضية ","عدم صرف","سنوية","تنبيه","انذار","حسم","مغادرات","تأخير","عرضية","مرضية ","عدم صرف","سنوية","تنبيه","انذار","حسم","مغادرات","تأخير","عرضية","مرضية ","عدم صرف","سنوية","تنبيه","انذار","حسم","مغادرات","تأخير","عرضية","مرضية ","عدم صرف","سنوية","تنبيه","انذار","حسم","مغادرات","تأخير"]
[null,{"$f":"كشف!B8","v":"س 1"},null,2,3,null,2,null,1,null,null,null,2,3,null,2,null,1,null,null,null,null,null,null,null,null,null,null,null,null,null,null,null,null,null,null,null,null,null,null,null,null,null,null,null,null,null,null,null,null,null,null,null,null,null,null,null,null,null,null,null,null,null,null,null,null,null,null,null,null,null,null,null,null,null,null,null,null,null,null,null,null,null,null,null,null,null,null,null,null,null,null,null,null,null,null,null,null,null,null,null,null,2,3,null,2,null,1,null,null,{"$f":"SUM(C8,L8,U8,AD8,AM8,AV8,BE8,BN8,BW8,CF8,CO8,CX8)","v":0},{"$f":"SUM(D8,M8,V8,AE8,AN8,AW8,BF8,BO8,BX8,CG8,CP8,CY8)","v":6},9,0,6,0,3,0,0]
[null,{"$f":"كشف!B9","v":"س 2"},null,1,null,null,null,null,null,null,null,null,1,null,null,null,null,null,null,null,null,null,null,null,null,null,null,null,null,null,null,null,null,null,null,null,null,null,null,null,null,null,null,null,null,null,null,null,null,null,null,null,null,null,null,null,null,null,null,null,null,null,null,null,null,null,null,null,null,null,null,null,null,null,null,null,null,null,null,null,null,null,null,null,null,null,null,null,null,null,null,null,null,null,null,null,null,null,null,null,null,null,1,null,null,null,null,null,null,null,{"$f":"SUM(C9,L9,U9,AD9,AM9,AV9,BE9,BN9,BW9,CF9,CO9,CX9)","v":0},{"$f":"SUM(D9,M9,V9,AE9,AN9,AW9,BF9,BO9,BX9,CG9,CP9,CY9)","v":3},{"$f":"SUM(E9,N9,W9,AF9,AO9,AX9,BG9,BP9,BY9,CH9,CQ9,CZ9)","v":0},{"$f":"SUM(F9,O9,X9,AG9,AP9,AY9,BH9,BQ9,BZ9,CI9,CR9,DA9)","v":0},{"$f":"SUM(G9,P9,Y9,AH9,AQ9,AZ9,BI9,BR9,CA9,CJ9,CS9,DB9)","v":0},{"$f":"SUM(H9,Q9,Z9,AI9,AR9,BA9,BJ9,BS9,CB9,CK9,CT9,DC9)","v":0},{"$f":"SUM(I9,R9,AA9,AJ9,AS9,BB9,BK9,BT9,CC9,CL9,CU9,DD9)","v":0},{"$f":"SUM(J9,S9,AB9,AK9,AT9,BC9,BL9,BU9,CD9,CM9,CV9,DE9)","v":0},{"$f":"SUM(K9,T9,AC9,AL9,AU9,BD9,BM9,BV9,CE9,CN9,CW9,DF9)","v":0}]
[null,{"$f":"كشف!B10","v":"س 3"},null,null,null,null,null,null,null,null,null,null,null,null,null,null,null,null,null,null,null,null,null,null,null,null,null,null,null,null,null,null,null,null,null,null,null,null,null,null,null,null,null,null,null,null,null,null,null,null,null,null,null,null,null,null,null,null,null,null,null,null,null,null,null,null,null,null,null,null,null,null,null,null,null,null,null,null,null,null,null,null,null,null,null,null,null,null,null,null,null,null,null,null,null,null,null,null,null,null,null,null,null,null,null,null,null,null,null,null,{"$f":"SUM(C10,L10,U10,AD10,AM10,AV10,BE10,BN10,BW10,CF10,CO10,CX10)","v":0},{"$f":"SUM(D10,M10,V10,AE10,AN10,AW10,BF10,BO10,BX10,CG10,CP10,CY10)","v":0},{"$f":"SUM(E10,N10,W10,AF10,AO10,AX10,BG10,BP10,BY10,CH10,CQ10,CZ10)","v":0},{"$f":"SUM(F10,O10,X10,AG10,AP10,AY10,BH10,BQ10,BZ10,CI10,CR10,DA10)","v":0},{"$f":"SUM(G10,P10,Y10,AH10,AQ10,AZ10,BI10,BR10,CA10,CJ10,CS10,DB10)","v":0},{"$f":"SUM(H10,Q10,Z10,AI10,AR10,BA10,BJ10,BS10,CB10,CK10,CT10,DC10)","v":0},{"$f":"SUM(I10,R10,AA10,AJ10,AS10,BB10,BK10,BT10,CC10,CL10,CU10,DD10)","v":0},{"$f":"SUM(J10,S10,AB10,AK10,AT10,BC10,BL10,BU10,CD10,CM10,CV10,DE10)","v":0},{"$f":"SUM(K10,T10,AC10,AL10,AU10,BD10,BM10,BV10,CE10,CN10,CW10,DF10)","v":0}]
[null,{"$f":"كشف!B11","v":"س 4"},null,null,null,null,null,null,null,null,null,null,null,null,null,null,null,null,null,null,null,null,null,null,null,null,null,null,null,null,null,null,null,null,null,null,null,null,null,null,null,null,null,null,null,null,null,null,null,null,null,null,null,null,null,null,null,null,null,null,null,null,null,null,null,null,null,null,null,null,null,null,null,null,null,null,null,null,null,null,null,null,null,null,null,null,null,null,null,null,null,null,null,null,null,null,null,null,null,null,null,null,null,null,null,null,null,null,null,null,0,0,0,0,0,0,0,0,0]
[null,{"$f":"كشف!B12","v":"س 5"},null,null,null,1,null,null,null,null,null,null,null,1,1,null,null,null,null,null,null,null,null,null,null,null,null,null,null,null,null,null,null,null,null,null,null,null,null,null,null,null,null,null,null,null,null,null,null,null,null,null,null,null,null,null,null,null,null,null,null,null,null,null,null,null,null,null,null,null,null,null,null,null,null,null,null,null,null,null,null,null,null,null,null,null,null,null,null,null,null,null,null,null,null,null,null,null,null,null,null,null,null,1,1,null,null,null,null,null,0,0,2,3,0,0,0,0,0]
[null,{"$f":"كشف!B13","v":"س 6"},null,null,null,null,null,null,null,null,null,null,null,null,null,null,null,null,null,null,null,null,null,null,null,null,null,null,null,null,null,null,null,null,null,null,null,null,null,null,null,null,null,null,null,null,null,null,null,null,null,null,null,null,null,null,null,null,null,null,null,null,null,null,null,null,null,null,null,null,null,null,null,null,null,null,null,null,null,null,null,null,null,null,null,null,null,null,null,null,null,null,null,null,null,null,null,null,null,null,null,null,null,null,null,null,null,null,null,null,0,0,0,0,0,0,0,0,0]
[null,{"$f":"كشف!B14","v":"س 7"},null,null,null,null,null,null,null,null,null,null,null,null,null,null,null,null,null,null,null,null,null,null,null,null,null,null,null,null,null,null,null,null,null,null,null,null,null,null,null,null,null,null,null,null,null,null,null,null,null,null,null,null,null,null,null,null,null,null,null,null,null,null,null,null,null,null,null,null,null,null,null,null,null,null,null,null,null,null,null,null,null,null,null,null,null,null,null,null,null,null,null,null,null,null,null,null,null,null,null,null,null,null,null,null,null,null,null,null,0,0,0,0,0,0,0,0,0]
[null,{"$f":"كشف!B15","v":"س 8"},null,null,null,null,null,null,null,null,null,null,null,null,null,null,null,null,null,null,null,null,null,null,null,null,null,null,null,null,null,null,null,null,null,null,null,null,null,null,null,null,null,null,null,null,null,null,null,null,null,null,null,null,null,null,null,null,null,null,null,null,null,null,null,null,null,null,null,null,null,null,null,null,null,null,null,null,null,null,null,null,null,null,null,null,null,null,null,null,null,null,null,null,null,null,null,null,null,null,null,null,null,null,null,null,null,null,null,null,0,0,0,0,0,0,0,0,0]
[null,{"$f":"كشف!B16","v":"س 9"},null,null,null,null,null,null,null,null,null,null,null,null,null,null,null,null,null,null,null,null,null,null,null,null,null,null,null,null,null,null,null,null,null,null,null,null,null,null,null,null,null,null,null,null,null,null,null,null,null,null,null,null,null,null,null,null,null,null,null,null,null,null,null,null,null,null,null,null,null,null,null,null,null,null,null,null,null,null,null,null,null,null,null,null,null,null,null,null,null,null,null,null,null,null,null,null,null,null,null,null,null,null,null,null,null,null,null,null,0,0,0,0,0,0,0,0,0]
[null,{"$f":"كشف!B17","v":"س 10"},null,null,null,null,null,null,null,null,null,null,null,null,null,null,null,null,null,null,null,null,null,null,null,null,null,null,null,null,null,null,null,null,null,null,null,null,null,null,null,null,null,null,null,null,null,null,null,null,null,null,null,null,null,null,null,null,null,null,null,null,null,null,null,null,null,null,null,null,null,null,null,null,null,null,null,null,null,null,null,null,null,null,null,null,null,null,null,null,null,null,null,null,null,null,null,null,null,null,null,null,null,null,null,null,null,null,null,null,{"$f":"SUM(C17,L17,U17,AD17,AM17,AV17,BE17,BN17,BW17,CF17,CO17,CX17)","v":0},{"$f":"SUM(D17,M17,V17,AE17,AN17,AW17,BF17,BO17,BX17,CG17,CP17,CY17)","v":0},{"$f":"SUM(E17,N17,W17,AF17,AO17,AX17,BG17,BP17,BY17,CH17,CQ17,CZ17)","v":0},{"$f":"SUM(F17,O17,X17,AG17,AP17,AY17,BH17,BQ17,BZ17,CI17,CR17,DA17)","v":0},{"$f":"SUM(G17,P17,Y17,AH17,AQ17,AZ17,BI17,BR17,CA17,CJ17,CS17,DB17)","v":0},{"$f":"SUM(H17,Q17,Z17,AI17,AR17,BA17,BJ17,BS17,CB17,CK17,CT17,DC17)","v":0},{"$f":"SUM(I17,R17,AA17,AJ17,AS17,BB17,BK17,BT17,CC17,CL17,CU17,DD17)","v":0},{"$f":"SUM(J17,S17,AB17,AK17,AT17,BC17,BL17,BU17,CD17,CM17,CV17,DE17)","v":0},{"$f":"SUM(K17,T17,AC17,AL17,AU17,BD17,BM17,BV17,CE17,CN17,CW17,DF17)","v":0}]
[null,{"$f":"كشف!B18","v":"س 11"},null,null,null,null,null,null,null,null,null,null,null,null,null,null,null,null,null,null,null,null,null,null,null,null,null,null,null,null,null,null,null,null,null,null,null,null,null,null,null,null,null,null,null,null,null,null,null,null,null,null,null,null,null,null,null,null,null,null,null,null,null,null,null,null,null,null,null,null,null,null,null,null,null,null,null,null,null,null,null,null,null,null,null,null,null,null,null,null,null,null,null,null,null,null,null,null,null,null,null,null,null,null,null,null,null,null,null,null,0,0,0,0,0,0,0,0,0]
[null,{"$f":"كشف!B19","v":"س 12"},null,null,null,null,null,null,null,null,null,null,null,null,null,null,null,null,null,null,null,null,null,null,null,null,null,null,null,null,null,null,null,null,null,null,null,null,null,null,null,null,null,null,null,null,null,null,null,null,null,null,null,null,null,null,null,null,null,null,null,null,null,null,null,null,null,null,null,null,null,null,null,null,null,null,null,null,null,null,null,null,null,null,null,null,null,null,null,null,null,null,null,null,null,null,null,null,null,null,null,null,null,null,null,null,null,null,null,null,0,0,0,0,0,0,0,0,0]
[null,{"$f":"كشف!B20","v":"س 13"},null,null,null,null,null,null,null,null,null,null,null,null,null,null,null,null,null,null,null,null,null,null,null,null,null,null,null,null,null,null,null,null,null,null,null,null,null,null,null,null,null,null,null,null,null,null,null,null,null,null,null,null,null,null,null,null,null,null,null,null,null,null,null,null,null,null,null,null,null,null,null,null,null,null,null,null,null,null,null,null,null,null,null,null,null,null,null,null,null,null,null,null,null,null,null,null,null,null,null,null,null,null,null,null,null,null,null,null,0,0,0,0,0,0,0,0,0]
[null,{"$f":"كشف!B21","v":"س 14"},null,null,null,null,null,null,null,null,null,null,null,null,null,null,null,null,null,null,null,null,null,null,null,null,null,null,null,null,null,null,null,null,null,null,null,null,null,null,null,null,null,null,null,null,null,null,null,null,null,null,null,null,null,null,null,null,null,null,null,null,null,null,null,null,null,null,null,null,null,null,null,null,null,null,null,null,null,null,null,null,null,null,null,null,null,null,null,null,null,null,null,null,null,null,null,null,null,null,null,null,null,null,null,null,null,null,null,null,0,0,0,0,0,0,0,0,0]
[null,{"$f":"كشف!B22","v":"س 15"},null,null,null,null,null,null,null,null,null,null,null,null,null,null,null,null,null,null,null,null,null,null,null,null,null,null,null,null,null,null,null,null,null,null,null,null,null,null,null,null,null,null,null,null,null,null,null,null,null,null,null,null,null,null,null,null,null,null,null,null,null,null,null,null,null,null,null,null,null,null,null,null,null,null,null,null,null,null,null,null,null,null,null,null,null,null,null,null,null,null,null,null,null,null,null,null,null,null,null,null,null,null,null,null,null,null,null,null,0,0,0,0,0,0,0,0,0]
[null,{"$f":"كشف!B23","v":"س 16"},null,null,null,null,null,null,null,null,null,null,null,null,null,null,null,null,null,null,null,null,null,null,null,null,null,null,null,null,null,null,null,null,null,null,null,null,null,null,null,null,null,null,null,null,null,null,null,null,null,null,null,null,null,null,null,null,null,null,null,null,null,null,null,null,null,null,null,null,null,null,null,null,null,null,null,null,null,null,null,null,null,null,null,null,null,null,null,null,null,null,null,null,null,null,null,null,null,null,null,null,null,null,null,null,null,null,null,null,0,0,0,0,0,0,0,0,0]
[null,{"$f":"كشف!B24","v":"س 17"},null,null,null,null,null,null,null,null,null,null,null,null,null,null,null,null,null,null,null,null,null,null,null,null,null,null,null,null,null,null,null,null,null,null,null,null,null,null,null,null,null,null,null,null,null,null,null,null,null,null,null,null,null,null,null,null,null,null,null,null,null,null,null,null,null,null,null,null,null,null,null,null,null,null,null,null,null,null,null,null,null,null,null,null,null,null,null,null,null,null,null,null,null,null,null,null,null,null,null,null,null,null,null,null,null,null,null,null,0,0,0,0,0,0,0,0,0]
[null,{"$f":"كشف!B25","v":"س 18"},null,null,null,null,null,null,null,null,null,null,null,null,null,null,null,null,null,null,null,null,null,null,null,null,null,null,null,null,null,null,null,null,null,null,null,null,null,null,null,null,null,null,null,null,null,null,null,null,null,null,null,null,null,null,null,null,null,null,null,null,null,null,null,null,null,null,null,null,null,null,null,null,null,null,null,null,null,null,null,null,null,null,null,null,null,null,null,null,null,null,null,null,null,null,null,null,null,null,null,null,null,null,null,null,null,null,null,null,0,0,0,0,0,0,0,0,0]
[null,{"$f":"كشف!B26","v":"س 19"},null,null,null,null,null,null,null,null,null,null,null,null,null,null,null,null,null,null,null,null,null,null,null,null,null,null,null,null,null,null,null,null,null,null,null,null,null,null,null,null,null,null,null,null,null,null,null,null,null,null,null,null,null,null,null,null,null,null,null,null,null,null,null,null,null,null,null,null,null,null,null,null,null,null,null,null,null,null,null,null,null,null,null,null,null,null,null,null,null,null,null,null,null,null,null,null,null,null,null,null,null,null,null,null,null,null,null,null,0,0,0,0,0,0,0,0,0]
[null,{"$f":"كشف!B27","v":"س 20"},null,null,null,null,null,null,null,null,null,null,null,null,null,null,null,null,null,null,null,null,null,null,null,null,null,null,null,null,null,null,null,null,null,null,null,null,null,null,null,null,null,null,null,null,null,null,null,null,null,null,null,null,null,null,null,null,null,null,null,null,null,null,null,null,null,null,null,null,null,null,null,null,null,null,null,null,null,null,null,null,null,null,null,null,null,null,null,null,null,null,null,null,null,null,null,null,null,null,null,null,null,null,null,null,null,null,null,null,0,0,0,0,0,0,0,0,0]
[null,{"$f":"كشف!B28","v":"س 21"},null,null,null,null,null,null,null,null,null,null,null,null,null,null,null,null,null,null,null,null,null,null,null,null,null,null,null,null,null,null,null,null,null,null,null,null,null,null,null,null,null,null,null,null,null,null,null,null,null,null,null,null,null,null,null,null,null,null,null,null,null,null,null,null,null,null,null,null,null,null,null,null,null,null,null,null,null,null,null,null,null,null,null,null,null,null,null,null,null,null,null,null,null,null,null,null,null,null,null,null,null,null,null,null,null,null,null,null,0,0,0,0,0,0,0,0,0]
[null,{"$f":"كشف!B29","v":"س 22"},null,null,null,null,null,null,null,null,null,null,null,null,null,null,null,null,null,null,null,null,null,null,null,null,null,null,null,null,null,null,null,null,null,null,null,null,null,null,null,null,null,null,null,null,null,null,null,null,null,null,null,null,null,null,null,null,null,null,null,null,null,null,null,null,null,null,null,null,null,null,null,null,null,null,null,null,null,null,null,null,null,null,null,null,null,null,null,null,null,null,null,null,null,null,null,null,null,null,null,null,null,null,null,null,null,null,null,null,0,0,0,0,0,0,0,0,0]
[null,{"$f":"كشف!B30","v":"س 23"},null,null,null,null,null,null,null,null,null,null,null,null,null,null,null,null,null,null,null,null,null,null,null,null,null,null,null,null,null,null,null,null,null,null,null,null,null,null,null,null,null,null,null,null,null,null,null,null,null,null,null,null,null,null,null,null,null,null,null,null,null,null,null,null,null,null,null,null,null,null,null,null,null,null,null,null,null,null,null,null,null,null,null,null,null,null,null,null,null,null,null,null,null,null,null,null,null,null,null,null,null,null,null,null,null,null,null,null,0,0,0,0,0,0,0,0,0]
[null,{"$f":"كشف!B31","v":"س 24"},null,null,null,null,null,null,null,null,null,null,null,null,null,null,null,null,null,null,null,null,null,null,null,null,null,null,null,null,null,null,null,null,null,null,null,null,null,null,null,null,null,null,null,null,null,null,null,null,null,null,null,null,null,null,null,null,null,null,null,null,null,null,null,null,null,null,null,null,null,null,null,null,null,null,null,null,null,null,null,null,null,null,null,null,null,null,null,null,null,null,null,null,null,null,null,null,null,null,null,null,null,null,null,null,null,null,null,null,0,0,0,0,0,0,0,0,0]
[null,{"$f":"كشف!B32","v":"س 25"},null,null,null,null,null,null,null,null,null,null,null,null,null,null,null,null,null,null,null,null,null,null,null,null,null,null,null,null,null,null,null,null,null,null,null,null,null,null,null,null,null,null,null,null,null,null,null,null,null,null,null,null,null,null,null,null,null,null,null,null,null,null,null,null,null,null,null,null,null,null,null,null,null,null,null,null,null,null,null,null,null,null,null,null,null,null,null,null,null,null,null,null,null,null,null,null,null,null,null,null,null,null,null,null,null,null,null,null,0,0,0,0,0,0,0,0,0]
[null,{"$f":"كشف!B33","v":"س 26"},null,null,null,null,null,null,null,null,null,null,null,null,null,null,null,null,null,null,null,null,null,null,null,null,null,null,null,null,null,null,null,null,null,null,null,null,null,null,null,null,null,null,null,null,null,null,null,null,null,null,null,null,null,null,null,null,null,null,null,null,null,null,null,null,null,null,null,null,null,null,null,null,null,null,null,null,null,null,null,null,null,null,null,null,null,null,null,null,null,null,null,null,null,null,null,null,null,null,null,null,null,null,null,null,null,null,null,null,0,0,0,0,0,0,0,0,0]
[null,{"$f":"كشف!B34","v":"س 27"},null,null,null,null,null,null,null,null,null,null,null,null,null,null,null,null,null,null,null,null,null,null,null,null,null,null,null,null,null,null,null,null,null,null,null,null,null,null,null,null,null,null,null,null,null,null,null,null,null,null,null,null,null,null,null,null,null,null,null,null,null,null,null,null,null,null,null,null,null,null,null,null,null,null,null,null,null,null,null,null,null,null,null,null,null,null,null,null,null,null,null,null,null,null,null,null,null,null,null,null,null,null,null,null,null,null,null,null,0,0,0,0,0,0,0,0,0]
[null,{"$f":"كشف!B35","v":"س 28"},null,null,null,null,null,null,null,null,null,null,null,null,null,null,null,null,null,null,null,null,null,null,null,null,null,null,null,null,null,null,null,null,null,null,null,null,null,null,null,null,null,null,null,null,null,null,null,null,null,null,null,null,null,null,null,null,null,null,null,null,null,null,null,null,null,null,null,null,null,null,null,null,null,null,null,null,null,null,null,null,null,null,null,null,null,null,null,null,null,null,null,null,null,null,null,null,null,null,null,null,null,null,null,null,null,null,null,null,0,0,0,0,0,0,0,0,0]
[null,{"$f":"كشف!B36","v":"س 29"},null,null,null,null,null,null,null,null,null,null,null,null,null,null,null,null,null,null,null,null,null,null,null,null,null,null,null,null,null,null,null,null,null,null,null,null,null,null,null,null,null,null,null,null,null,null,null,null,null,null,null,null,null,null,null,null,null,null,null,null,null,null,null,null,null,null,null,null,null,null,null,null,null,null,null,null,null,null,null,null,null,null,null,null,null,null,null,null,null,null,null,null,null,null,null,null,null,null,null,null,null,null,null,null,null,null,null,null,0,0,0,0,0,0,0,0,0]
[null,{"$f":"كشف!B37","v":"س 30"},null,null,null,null,null,null,null,null,null,null,null,null,null,null,null,null,null,null,null,null,null,null,null,null,null,null,null,null,null,null,null,null,null,null,null,null,null,null,null,null,null,null,null,null,null,null,null,null,null,null,null,null,null,null,null,null,null,null,null,null,null,null,null,null,null,null,null,null,null,null,null,null,null,null,null,null,null,null,null,null,null,null,null,null,null,null,null,null,null,null,null,null,null,null,null,null,null,null,null,null,null,null,null,null,null,null,null,null,0,0,0,0,0,0,0,0,0]
[null,{"$f":"كشف!B38","v":"س 31"},null,null,null,null,null,null,null,null,null,null,null,null,null,null,null,null,null,null,null,null,null,null,null,null,null,null,null,null,null,null,null,null,null,null,null,null,null,null,null,null,null,null,null,null,null,null,null,null,null,null,null,null,null,null,null,null,null,null,null,null,null,null,null,null,null,null,null,null,null,null,null,null,null,null,null,null,null,null,null,null,null,null,null,null,null,null,null,null,null,null,null,null,null,null,null,null,null,null,null,null,null,null,null,null,null,null,null,null,0,0,0,0,0,0,0,0,0]
[null,{"$f":"كشف!B39","v":"س 32"},null,null,null,null,null,null,null,null,null,null,null,null,null,null,null,null,null,null,null,null,null,null,null,null,null,null,null,null,null,null,null,null,null,null,null,null,null,null,null,null,null,null,null,null,null,null,null,null,null,null,null,null,null,null,null,null,null,null,null,null,null,null,null,null,null,null,null,null,null,null,null,null,null,null,null,null,null,null,null,null,null,null,null,null,null,null,null,null,null,null,null,null,null,null,null,null,null,null,null,null,null,null,null,null,null,null,null,null,0,0,0,0,0,0,0,0,0]
[null,{"$f":"كشف!B40","v":"س 33"},null,null,null,null,null,null,null,null,null,null,null,null,null,null,null,null,null,null,null,null,null,null,null,null,null,null,null,null,null,null,null,null,null,null,null,null,null,null,null,null,null,null,null,null,null,null,null,null,null,null,null,null,null,null,null,null,null,null,null,null,null,null,null,null,null,null,null,null,null,null,null,null,null,null,null,null,null,null,null,null,null,null,null,null,null,null,null,null,null,null,null,null,null,null,null,null,null,null,null,null,null,null,null,null,null,null,null,null,0,0,0,0,0,0,0,0,0]
[null,{"$f":"كشف!B41","v":"س 34"},null,null,null,null,null,null,null,null,null,null,null,null,null,null,null,null,null,null,null,null,null,null,null,null,null,null,null,null,null,null,null,null,null,null,null,null,null,null,null,null,null,null,null,null,null,null,null,null,null,null,null,null,null,null,null,null,null,null,null,null,null,null,null,null,null,null,null,null,null,null,null,null,null,null,null,null,null,null,null,null,null,null,null,null,null,null,null,null,null,null,null,null,null,null,null,null,null,null,null,null,null,null,null,null,null,null,null,null,0,0,0,0,0,0,0,0,0]
[null,{"$f":"كشف!B42","v":"س 35"},null,null,null,null,null,null,null,null,null,null,null,null,null,null,null,null,null,null,null,null,null,null,null,null,null,null,null,null,null,null,null,null,null,null,null,null,null,null,null,null,null,null,null,null,null,null,null,null,null,null,null,null,null,null,null,null,null,null,null,null,null,null,null,null,null,null,null,null,null,null,null,null,null,null,null,null,null,null,null,null,null,null,null,null,null,null,null,null,null,null,null,null,null,null,null,null,null,null,null,null,null,null,null,null,null,null,null,null,0,0,0,0,0,0,0,0,0]
[null,{"$f":"كشف!B43","v":"س 36"},null,null,null,null,null,null,null,null,null,null,null,null,null,null,null,null,null,null,null,null,null,null,null,null,null,null,null,null,null,null,null,null,null,null,null,null,null,null,null,null,null,null,null,null,null,null,null,null,null,null,null,null,null,null,null,null,null,null,null,null,null,null,null,null,null,null,null,null,null,null,null,null,null,null,null,null,null,null,null,null,null,null,null,null,null,null,null,null,null,null,null,null,null,null,null,null,null,null,null,null,null,null,null,null,null,null,null,null,0,0,0,0,0,0,0,0,0]
[null,{"$f":"كشف!B44","v":"س 37"},null,null,null,null,null,null,null,null,null,null,null,null,null,null,null,null,null,null,null,null,null,null,null,null,null,null,null,null,null,null,null,null,null,null,null,null,null,null,null,null,null,null,null,null,null,null,null,null,null,null,null,null,null,null,null,null,null,null,null,null,null,null,null,null,null,null,null,null,null,null,null,null,null,null,null,null,null,null,null,null,null,null,null,null,null,null,null,null,null,null,null,null,null,null,null,null,null,null,null,null,null,null,null,null,null,null,null,null,0,0,0,0,0,0,0,0,0]
[null,{"$f":"كشف!B45","v":"س 38"},null,null,null,null,null,null,null,null,null,null,null,null,null,null,null,null,null,null,null,null,null,null,null,null,null,null,null,null,null,null,null,null,null,null,null,null,null,null,null,null,null,null,null,null,null,null,null,null,null,null,null,null,null,null,null,null,null,null,null,null,null,null,null,null,null,null,null,null,null,null,null,null,null,null,null,null,null,null,null,null,null,null,null,null,null,null,null,null,null,null,null,null,null,null,null,null,null,null,null,null,null,null,null,null,null,null,null,null,0,0,0,0,0,0,0,0,0]
[null,{"$f":"كشف!B46","v":"س 39"},null,null,null,null,null,null,null,null,null,null,null,null,null,null,null,null,null,null,null,null,null,null,null,null,null,null,null,null,null,null,null,null,null,null,null,null,null,null,null,null,null,null,null,null,null,null,null,null,null,null,null,null,null,null,null,null,null,null,null,null,null,null,null,null,null,null,null,null,null,null,null,null,null,null,null,null,null,null,null,null,null,null,null,null,null,null,null,null,null,null,null,null,null,null,null,null,null,null,null,null,null,null,null,null,null,null,null,null,0,0,0,0,0,0,0,0,0]
[null,{"$f":"كشف!B47","v":"س 40"},null,null,null,null,null,null,null,null,null,null,null,null,null,null,null,null,null,null,null,null,null,null,null,null,null,null,null,null,null,null,null,null,null,null,null,null,null,null,null,null,null,null,null,null,null,null,null,null,null,null,null,null,null,null,null,null,null,null,null,null,null,null,null,null,null,null,null,null,null,null,null,null,null,null,null,null,null,null,null,null,null,null,null,null,null,null,null,null,null,null,null,null,null,null,null,null,null,null,null,null,null,null,null,null,null,null,null,null,0,0,0,0,0,0,0,0,0]
[null,{"$f":"كشف!B48","v":"س 41"},null,null,null,null,null,null,null,null,null,null,null,null,null,null,null,null,null,null,null,null,null,null,null,null,null,null,null,null,null,null,null,null,null,null,null,null,null,null,null,null,null,null,null,null,null,null,null,null,null,null,null,null,null,null,null,null,null,null,null,null,null,null,null,null,null,null,null,null,null,null,null,null,null,null,null,null,null,null,null,null,null,null,null,null,null,null,null,null,null,null,null,null,null,null,null,null,null,null,null,null,null,null,null,null,null,null,null,null,0,0,0,0,0,0,0,0,0]
[null,{"$f":"كشف!B49","v":"س 42"},null,null,null,null,null,null,null,null,null,null,null,null,null,null,null,null,null,null,null,null,null,null,null,null,null,null,null,null,null,null,null,null,null,null,null,null,null,null,null,null,null,null,null,null,null,null,null,null,null,null,null,null,null,null,null,null,null,null,null,null,null,null,null,null,null,null,null,null,null,null,null,null,null,null,null,null,null,null,null,null,null,null,null,null,null,null,null,null,null,null,null,null,null,null,null,null,null,null,null,null,null,null,null,null,null,null,null,null,0,0,0,0,0,0,0,0,0]
[null,{"$f":"كشف!B50","v":"س 43"},null,null,null,null,null,null,null,null,null,null,null,null,null,null,null,null,null,null,null,null,null,null,null,null,null,null,null,null,null,null,null,null,null,null,null,null,null,null,null,null,null,null,null,null,null,null,null,null,null,null,null,null,null,null,null,null,null,null,null,null,null,null,null,null,null,null,null,null,null,null,null,null,null,null,null,null,null,null,null,null,null,null,null,null,null,null,null,null,null,null,null,null,null,null,null,null,null,null,null,null,null,null,null,null,null,null,null,null,0,0,0,0,0,0,0,0,0]
[null,{"$f":"كشف!B51","v":"س 44"},null,null,null,null,null,null,null,null,null,null,null,null,null,null,null,null,null,null,null,null,null,null,null,null,null,null,null,null,null,null,null,null,null,null,null,null,null,null,null,null,null,null,null,null,null,null,null,null,null,null,null,null,null,null,null,null,null,null,null,null,null,null,null,null,null,null,null,null,null,null,null,null,null,null,null,null,null,null,null,null,null,null,null,null,null,null,null,null,null,null,null,null,null,null,null,null,null,null,null,null,null,null,null,null,null,null,null,null,0,0,0,0,0,0,0,0,0]
[null,{"$f":"كشف!B52","v":"س 45"},null,null,null,null,null,null,null,null,null,null,null,null,null,null,null,null,null,null,null,null,null,null,null,null,null,null,null,null,null,null,null,null,null,null,null,null,null,null,null,null,null,null,null,null,null,null,null,null,null,null,null,null,null,null,null,null,null,null,null,null,null,null,null,null,null,null,null,null,null,null,null,null,null,null,null,null,null,null,null,null,null,null,null,null,null,null,null,null,null,null,null,null,null,null,null,null,null,null,null,null,null,null,null,null,null,null,null,null,0,0,0,0,0,0,0,0,0]
[null,{"$f":"كشف!B53","v":"س 46"},null,null,null,null,null,null,null,null,null,null,null,null,null,null,null,null,null,null,null,null,null,null,null,null,null,null,null,null,null,null,null,null,null,null,null,null,null,null,null,null,null,null,null,null,null,null,null,null,null,null,null,null,null,null,null,null,null,null,null,null,null,null,null,null,null,null,null,null,null,null,null,null,null,null,null,null,null,null,null,null,null,null,null,null,null,null,null,null,null,null,null,null,null,null,null,null,null,null,null,null,null,null,null,null,null,null,null,null,0,0,0,0,0,0,0,0,0]
[null,{"$f":"كشف!B54","v":"س 47"},null,null,null,null,null,null,null,null,null,null,null,null,null,null,null,null,null,null,null,null,null,null,null,null,null,null,null,null,null,null,null,null,null,null,null,null,null,null,null,null,null,null,null,null,null,null,null,null,null,null,null,null,null,null,null,null,null,null,null,null,null,null,null,null,null,null,null,null,null,null,null,null,null,null,null,null,null,null,null,null,null,null,null,null,null,null,null,null,null,null,null,null,null,null,null,null,null,null,null,null,null,null,null,null,null,null,null,null,0,0,0,0,0,0,0,0,0]
[null,{"$f":"كشف!B55","v":"س 48"},null,null,null,null,null,null,null,null,null,null,null,null,null,null,null,null,null,null,null,null,null,null,null,null,null,null,null,null,null,null,null,null,null,null,null,null,null,null,null,null,null,null,null,null,null,null,null,null,null,null,null,null,null,null,null,null,null,null,null,null,null,null,null,null,null,null,null,null,null,null,null,null,null,null,null,null,null,null,null,null,null,null,null,null,null,null,null,null,null,null,null,null,null,null,null,null,null,null,null,null,null,null,null,null,null,null,null,null,0,0,0,0,0,0,0,0,0]
[null,{"$f":"كشف!B56","v":"س 49"},null,null,null,null,null,null,null,null,null,null,null,null,null,null,null,null,null,null,null,null,null,null,null,null,null,null,null,null,null,null,null,null,null,null,null,null,null,null,null,null,null,null,null,null,null,null,null,null,null,null,null,null,null,null,null,null,null,null,null,null,null,null,null,null,null,null,null,null,null,null,null,null,null,null,null,null,null,null,null,null,null,null,null,null,null,null,null,null,null,null,null,null,null,null,null,null,null,null,null,null,null,null,null,null,null,null,null,null,0,0,0,0,0,0,0,0,0]
[null,{"$f":"كشف!B57","v":"س 50"},null,null,null,null,null,null,null,null,null,null,null,null,null,null,null,null,null,null,null,null,null,null,null,null,null,null,null,null,null,null,null,null,null,null,null,null,null,null,null,null,null,null,null,null,null,null,null,null,null,null,null,null,null,null,null,null,null,null,null,null,null,null,null,null,null,null,null,null,null,null,null,null,null,null,null,null,null,null,null,null,null,null,null,null,null,null,null,null,null,null,null,null,null,null,null,null,null,null,null,null,null,null,null,null,null,null,null,null,0,0,0,0,0,0,0,0,0]
[null,{"$f":"كشف!B58","v":"00:00:00"},null,null,null,null,null,null,null,null,null,null,null,null,null,null,null,null,null,null,null,null,null,null,null,null,null,null,null,null,null,null,null,null,null,null,null,null,null,null,null,null,null,null,null,null,null,null,null,null,null,null,null,null,null,null,null,null,null,null,null,null,null,null,null,null,null,null,null,null,null,null,null,null,null,null,null,null,null,null,null,null,null,null,null,null,null,null,null,null,null,null,null,null,null,null,null,null,null,null,null,null,null,null,null,null,null,null,null,null,0,0,0,0,0,0,0,0,0]
[null,{"$f":"كشف!B59","v":"00:00:00"},null,null,null,null,null,null,null,null,null,null,null,null,null,null,null,null,null,null,null,null,null,null,null,null,null,null,null,null,null,null,null,null,null,null,null,null,null,null,null,null,null,null,null,null,null,null,null,null,null,null,null,null,null,null,null,null,null,null,null,null,null,null,null,null,null,null,null,null,null,null,null,null,null,null,null,null,null,null,null,null,null,null,null,null,null,null,null,null,null,null,null,null,null,null,null,null,null,null,null,null,null,null,null,null,null,null,null,null,0,0,0,0,0,0,0,0,0]
[null,{"$f":"كشف!B60","v":"00:00:00"},null,null,null,null,null,null,null,null,null,null,null,null,null,null,null,null,null,null,null,null,null,null,null,null,null,null,null,null,null,null,null,null,null,null,null,null,null,null,null,null,null,null,null,null,null,null,null,null,null,null,null,null,null,null,null,null,null,null,null,null,null,null,null,null,null,null,null,null,null,null,null,null,null,null,null,null,null,null,null,null,null,null,null,null,null,null,null,null,null,null,null,null,null,null,null,null,null,null,null,null,null,null,null,null,null,null,null,null,0,0,0,0,0,0,0,0,0]
[null,{"$f":"كشف!B61","v":"00:00:00"},null,null,null,null,null,null,null,null,null,null,null,null,null,null,null,null,null,null,null,null,null,null,null,null,null,null,null,null,null,null,null,null,null,null,null,null,null,null,null,null,null,null,null,null,null,null,null,null,null,null,null,null,null,null,null,null,null,null,null,null,null,null,null,null,null,null,null,null,null,null,null,null,null,null,null,null,null,null,null,null,null,null,null,null,null,null,null,null,null,null,null,null,null,null,null,null,null,null,null,null,null,null,null,null,null,null,null,null,0,0,0,0,0,0,0,0,0]
[null,{"$f":"كشف!B62","v":"00:00:00"},null,null,null,null,null,null,null,null,null,null,null,null,null,null,null,null,null,null,null,null,null,null,null,null,null,null,null,null,null,null,null,null,null,null,null,null,null,null,null,null,null,null,null,null,null,null,null,null,null,null,null,null,null,null,null,null,null,null,null,null,null,null,null,null,null,null,null,null,null,null,null,null,null,null,null,null,null,null,null,null,null,null,null,null,null,null,null,null,null,null,null,null,null,null,null,null,null,null,null,null,null,null,null,null,null,null,null,null,0,0,0,0,0,0,0,0,0]
[null,{"$f":"كشف!B63","v":"00:00:00"},null,null,null,null,null,null,null,null,null,null,null,null,null,null,null,null,null,null,null,null,null,null,null,null,null,null,null,null,null,null,null,null,null,null,null,null,null,null,null,null,null,null,null,null,null,null,null,null,null,null,null,null,null,null,null,null,null,null,null,null,null,null,null,null,null,null,null,null,null,null,null,null,null,null,null,null,null,null,null,null,null,null,null,null,null,null,null,null,null,null,null,null,null,null,null,null,null,null,null,null,null,null,null,null,null,null,null,null,0,0,0,0,0,0,0,0,0]
[null,{"$f":"كشف!B64","v":"00:00:00"},null,null,null,null,null,null,null,null,null,null,null,null,null,null,null,null,null,null,null,null,null,null,null,null,null,null,null,null,null,null,null,null,null,null,null,null,null,null,null,null,null,null,null,null,null,null,null,null,null,null,null,null,null,null,null,null,null,null,null,null,null,null,null,null,null,null,null,null,null,null,null,null,null,null,null,null,null,null,null,null,null,null,null,null,null,null,null,null,null,null,null,null,null,null,null,null,null,null,null,null,null,null,null,null,null,null,null,null,0,0,0,0,0,0,0,0,0]
[null,{"$f":"كشف!B65","v":"00:00:00"},null,null,null,null,null,null,null,null,null,null,null,null,null,null,null,null,null,null,null,null,null,null,null,null,null,null,null,null,null,null,null,null,null,null,null,null,null,null,null,null,null,null,null,null,null,null,null,null,null,null,null,null,null,null,null,null,null,null,null,null,null,null,null,null,null,null,null,null,null,null,null,null,null,null,null,null,null,null,null,null,null,null,null,null,null,null,null,null,null,null,null,null,null,null,null,null,null,null,null,null,null,null,null,null,null,null,null,null,0,0,0,0,0,0,0,0,0]
[null,{"$f":"كشف!B66","v":"00:00:00"},null,null,null,null,null,null,null,null,null,null,null,null,null,null,null,null,null,null,null,null,null,null,null,null,null,null,null,null,null,null,null,null,null,null,null,null,null,null,null,null,null,null,null,null,null,null,null,null,null,null,null,null,null,null,null,null,null,null,null,null,null,null,null,null,null,null,null,null,null,null,null,null,null,null,null,null,null,null,null,null,null,null,null,null,null,null,null,null,null,null,null,null,null,null,null,null,null,null,null,null,null,null,null,null,null,null,null,null,0,0,0,0,0,0,0,0,0]
[null,{"$f":"كشف!B67","v":"00:00:00"},null,null,null,null,null,null,null,null,null,null,null,null,null,null,null,null,null,null,null,null,null,null,null,null,null,null,null,null,null,null,null,null,null,null,null,null,null,null,null,null,null,null,null,null,null,null,null,null,null,null,null,null,null,null,null,null,null,null,null,null,null,null,null,null,null,null,null,null,null,null,null,null,null,null,null,null,null,null,null,null,null,null,null,null,null,null,null,null,null,null,null,null,null,null,null,null,null,null,null,null,null,null,null,null,null,null,null,null,0,0,0,0,0,0,0,0,0]
[null,{"$f":"كشف!B68","v":"00:00:00"},null,null,null,null,null,null,null,null,null,null,null,null,null,null,null,null,null,null,null,null,null,null,null,null,null,null,null,null,null,null,null,null,null,null,null,null,null,null,null,null,null,null,null,null,null,null,null,null,null,null,null,null,null,null,null,null,null,null,null,null,null,null,null,null,null,null,null,null,null,null,null,null,null,null,null,null,null,null,null,null,null,null,null,null,null,null,null,null,null,null,null,null,null,null,null,null,null,null,null,null,null,null,null,null,null,null,null,null,0,0,0,0,0,0,0,0,0]
[null,{"$f":"كشف!B69","v":"00:00:00"},null,null,null,null,null,null,null,null,null,null,null,null,null,null,null,null,null,null,null,null,null,null,null,null,null,null,null,null,null,null,null,null,null,null,null,null,null,null,null,null,null,null,null,null,null,null,null,null,null,null,null,null,null,null,null,null,null,null,null,null,null,null,null,null,null,null,null,null,null,null,null,null,null,null,null,null,null,null,null,null,null,null,null,null,null,null,null,null,null,null,null,null,null,null,null,null,null,null,null,null,null,null,null,null,null,null,null,null,0,0,0,0,0,0,0,0,0]
[null,{"$f":"كشف!B70","v":"00:00:00"},null,null,null,null,null,null,null,null,null,null,null,null,null,null,null,null,null,null,null,null,null,null,null,null,null,null,null,null,null,null,null,null,null,null,null,null,null,null,null,null,null,null,null,null,null,null,null,null,null,null,null,null,null,null,null,null,null,null,null,null,null,null,null,null,null,null,null,null,null,null,null,null,null,null,null,null,null,null,null,null,null,null,null,null,null,null,null,null,null,null,null,null,null,null,null,null,null,null,null,null,null,null,null,null,null,null,null,null,0,0,0,0,0,0,0,0,0]
[null,{"$f":"كشف!B71","v":"00:00:00"},null,null,null,null,null,null,null,null,null,null,null,null,null,null,null,null,null,null,null,null,null,null,null,null,null,null,null,null,null,null,null,null,null,null,null,null,null,null,null,null,null,null,null,null,null,null,null,null,null,null,null,null,null,null,null,null,null,null,null,null,null,null,null,null,null,null,null,null,null,null,null,null,null,null,null,null,null,null,null,null,null,null,null,null,null,null,null,null,null,null,null,null,null,null,null,null,null,null,null,null,null,null,null,null,null,null,null,null,0,0,0,0,0,0,0,0,0]
[null,{"$f":"كشف!B72","v":"00:00:00"},null,null,null,null,null,null,null,null,null,null,null,null,null,null,null,null,null,null,null,null,null,null,null,null,null,null,null,null,null,null,null,null,null,null,null,null,null,null,null,null,null,null,null,null,null,null,null,null,null,null,null,null,null,null,null,null,null,null,null,null,null,null,null,null,null,null,null,null,null,null,null,null,null,null,null,null,null,null,null,null,null,null,null,null,null,null,null,null,null,null,null,null,null,null,null,null,null,null,null,null,null,null,null,null,null,null,null,null,0,0,0,0,0,0,0,0,0]
[null,{"$f":"كشف!B73","v":"00:00:00"},null,null,null,null,null,null,null,null,null,null,null,null,null,null,null,null,null,null,null,null,null,null,null,null,null,null,null,null,null,null,null,null,null,null,null,null,null,null,null,null,null,null,null,null,null,null,null,null,null,null,null,null,null,null,null,null,null,null,null,null,null,null,null,null,null,null,null,null,null,null,null,null,null,null,null,null,null,null,null,null,null,null,null,null,null,null,null,null,null,null,null,null,null,null,null,null,null,null,null,null,null,null,null,null,null,null,null,null,0,0,0,0,0,0,0,0,0]
[null,null,null,null,null,null,null,null,null,null,null,null,null,null,null,null,null,null,null,null,null,null,null,null,null,null,null,null,null,null,null,null,null,null,null,null,null,null,null,null,null,null,null,null,null,null,null,null,null,null,null,null,null,null,null,null,null,null,null,null,null,null,null,null,null,null,null,null,null,null,null,null,null,null,null,null,null,null,null,null,null,null,null,null,null,null,null,null,null,null,null,null,null,null,null,null,null,null,null,null,null,null,null,null,null,null,null,null,null,null,0,0,0,0,0,0,0,0,0]
[null,null,null,null,null,null,null,null,null,null,null,null,null,null,null,null,null,null,null,null,null,null,null,null,null,null,null,null,null,null,null,null,null,null,null,null,null,null,null,null,null,null,null,null,null,null,null,null,null,null,null,null,null,null,null,null,null,null,null,null,null,null,null,null,null,null,null,null,null,null,null,null,null,null,null,null,null,null,null,null,null,null,null,null,null,null,null,null,null,null,null,null,null,null,null,null,null,null,null,null,null,null,null,null,null,null,null,null,null,null,0,0,0,0,0,0,0,0,0]
[null,null,null,null,null,null,null,null,null,null,null,null,null,null,null,null,null,null,null,null,null,null,null,null,null,null,null,null,null,null,null,null,null,null,null,null,null,null,null,null,null,null,null,null,null,null,null,null,null,null,null,null,null,null,null,null,null,null,null,null,null,null,null,null,null,null,null,null,null,null,null,null,null,null,null,null,null,null,null,null,null,null,null,null,null,null,null,null,null,null,null,null,null,null,null,null,null,null,null,null,null,null,null,null,null,null,null,null,null,null,0,0,0,0,0,0,0,0,0]
[null,null,null,null,null,null,null,null,null,null,null,null,null,null,null,null,null,null,null,null,null,null,null,null,null,null,null,null,null,null,null,null,null,null,null,null,null,null,null,null,null,null,null,null,null,null,null,null,null,null,null,null,null,null,null,null,null,null,null,null,null,null,null,null,null,null,null,null,null,null,null,null,null,null,null,null,null,null,null,null,null,null,null,null,null,null,null,null,null,null,null,null,null,null,null,null,null,null,null,null,null,null,null,null,null,null,null,null,null,null,0,0,0,0,0,0,0,0,0]
[null,null,null,null,null,null,null,null,null,null,null,null,null,null,null,null,null,null,null,null,null,null,null,null,null,null,null,null,null,null,null,null,null,null,null,null,null,null,null,null,null,null,null,null,null,null,null,null,null,null,null,null,null,null,null,null,null,null,null,null,null,null,null,null,null,null,null,null,null,null,null,null,null,null,null,null,null,null,null,null,null,null,null,null,null,null,null,null,null,null,null,null,null,null,null,null,null,null,null,null,null,null,null,null,null,null,null,null,null,null,0,0,0,0,0,0,0,0,0]
[null,null,null,null,null,null,null,null,null,null,null,null,null,null,null,null,null,null,null,null,null,null,null,null,null,null,null,null,null,null,null,null,null,null,null,null,null,null,null,null,null,null,null,null,null,null,null,null,null,null,null,null,null,null,null,null,null,null,null,null,null,null,null,null,null,null,null,null,null,null,null,null,null,null,null,null,null,null,null,null,null,null,null,null,null,null,null,null,null,null,null,null,null,null,null,null,null,null,null,null,null,null,null,null,null,null,null,null,null,null,0,0,0,0,0,0,0,0,0]
[null,null,null,null,null,null,null,null,null,null,null,null,null,null,null,null,null,null,null,null,null,null,null,null,null,null,null,null,null,null,null,null,null,null,null,null,null,null,null,null,null,null,null,null,null,null,null,null,null,null,null,null,null,null,null,null,null,null,null,null,null,null,null,null,null,null,null,null,null,null,null,null,null,null,null,null,null,null,null,null,null,null,null,null,null,null,null,null,null,null,null,null,null,null,null,null,null,null,null,null,null,null,null,null,null,null,null,null,null,null,0,0,0,0,0,0,0,0,0]
[null,null,null,null,null,null,null,null,null,null,null,null,null,null,null,null,null,null,null,null,null,null,null,null,null,null,null,null,null,null,null,null,null,null,null,null,null,null,null,null,null,null,null,null,null,null,null,null,null,null,null,null,null,null,null,null,null,null,null,null,null,null,null,null,null,null,null,null,null,null,null,null,null,null,null,null,null,null,null,null,null,null,null,null,null,null,null,null,null,null,null,null,null,null,null,null,null,null,null,null,null,null,null,null,null,null,null,null,null,null,{"$f":"SUM(C81,L81,U81,AD81,AM81,AV81,BE81,BN81,BW81,CF81,CO81,CX81)","v":0},{"$f":"SUM(D81,M81,V81,AE81,AN81,AW81,BF81,BO81,BX81,CG81,CP81,CY81)","v":0},{"$f":"SUM(E81,N81,W81,AF81,AO81,AX81,BG81,BP81,BY81,CH81,CQ81,CZ81)","v":0},{"$f":"SUM(F81,O81,X81,AG81,AP81,AY81,BH81,BQ81,BZ81,CI81,CR81,DA81)","v":0},{"$f":"SUM(G81,P81,Y81,AH81,AQ81,AZ81,BI81,BR81,CA81,CJ81,CS81,DB81)","v":0},{"$f":"SUM(H81,Q81,Z81,AI81,AR81,BA81,BJ81,BS81,CB81,CK81,CT81,DC81)","v":0},{"$f":"SUM(I81,R81,AA81,AJ81,AS81,BB81,BK81,BT81,CC81,CL81,CU81,DD81)","v":0},{"$f":"SUM(J81,S81,AB81,AK81,AT81,BC81,BL81,BU81,CD81,CM81,CV81,DE81)","v":0},{"$f":"SUM(K81,T81,AC81,AL81,AU81,BD81,BM81,BV81,CE81,CN81,CW81,DF81)","v":0}]
[null,null,null,null,null,null,null,null,null,null,null,null,null,null,null,null,null,null,null,null,null,null,null,null,null,null,null,null,null,null,null,null,null,null,null,null,null,null,null,null,null,null,null,null,null,null,null,null,null,null,null,null,null,null,null,null,null,null,null,null,null,null,null,null,null,null,null,null,null,null,null,null,null,null,null,null,null,null,null,null,null,null,null,null,null,null,null,null,null,null,null,null,null,null,null,null,null,null,null,null,null,null,null,null,null,null,null,null,null,null,0,0,0,0,0,0,0,0,0]
[null,null,null,null,null,null,null,null,null,null,null,null,null,null,null,null,null,null,null,null,null,null,null,null,null,null,null,null,null,null,null,null,null,null,null,null,null,null,null,null,null,null,null,null,null,null,null,null,null,null,null,null,null,null,null,null,null,null,null,null,null,null,null,null,null,null,null,null,null,null,null,null,null,null,null,null,null,null,null,null,null,null,null,null,null,null,null,null,null,null,null,null,null,null,null,null,null,null,null,null,null,null,null,null,null,null,null,null,null,null,0,0,0,0,0,0,0,0,0]
[null,null,null,null,null,null,null,null,null,null,null,null,null,null,null,null,null,null,null,null,null,null,null,null,null,null,null,null,null,null,null,null,null,null,null,null,null,null,null,null,null,null,null,null,null,null,null,null,null,null,null,null,null,null,null,null,null,null,null,null,null,null,null,null,null,null,null,null,null,null,null,null,null,null,null,null,null,null,null,null,null,null,null,null,null,null,null,null,null,null,null,null,null,null,null,null,null,null,null,null,null,null,null,null,null,null,null,null,null,null,0,0,0,0,0,0,0,0,0]
[null,null,null,null,null,null,null,null,null,null,null,null,null,null,null,null,null,null,null,null,null,null,null,null,null,null,null,null,null,null,null,null,null,null,null,null,null,null,null,null,null,null,null,null,null,null,null,null,null,null,null,null,null,null,null,null,null,null,null,null,null,null,null,null,null,null,null,null,null,null,null,null,null,null,null,null,null,null,null,null,null,null,null,null,null,null,null,null,null,null,null,null,null,null,null,null,null,null,null,null,null,null,null,null,null,null,null,null,null,null,0,0,0,0,0,0,0,0,0]
[null,null,null,null,null,null,null,null,null,null,null,null,null,null,null,null,null,null,null,null,null,null,null,null,null,null,null,null,null,null,null,null,null,null,null,null,null,null,null,null,null,null,null,null,null,null,null,null,null,null,null,null,null,null,null,null,null,null,null,null,null,null,null,null,null,null,null,null,null,null,null,null,null,null,null,null,null,null,null,null,null,null,null,null,null,null,null,null,null,null,null,null,null,null,null,null,null,null,null,null,null,null,null,null,null,null,null,null,null,null,0,0,0,0,0,0,0,0,0]
[null,null,null,null,null,null,null,null,null,null,null,null,null,null,null,null,null,null,null,null,null,null,null,null,null,null,null,null,null,null,null,null,null,null,null,null,null,null,null,null,null,null,null,null,null,null,null,null,null,null,null,null,null,null,null,null,null,null,null,null,null,null,null,null,null,null,null,null,null,null,null,null,null,null,null,null,null,null,null,null,null,null,null,null,null,null,null,null,null,null,null,null,null,null,null,null,null,null,null,null,null,null,null,null,null,null,null,null,null,null,0,0,0,0,0,0,0,0,0]
[null,null,null,null,null,null,null,null,null,null,null,null,null,null,null,null,null,null,null,null,null,null,null,null,null,null,null,null,null,null,null,null,null,null,null,null,null,null,null,null,null,null,null,null,null,null,null,null,null,null,null,null,null,null,null,null,null,null,null,null,null,null,null,null,null,null,null,null,null,null,null,null,null,null,null,null,null,null,null,null,null,null,null,null,null,null,null,null,null,null,null,null,null,null,null,null,null,null,null,null,null,null,null,null,null,null,null,null,null,null,0,0,0,0,0,0,0,0,0]
[null,null,null,null,null,null,null,null,null,null,null,null,null,null,null,null,null,null,null,null,null,null,null,null,null,null,null,null,null,null,null,null,null,null,null,null,null,null,null,null,null,null,null,null,null,null,null,null,null,null,null,null,null,null,null,null,null,null,null,null,null,null,null,null,null,null,null,null,null,null,null,null,null,null,null,null,null,null,null,null,null,null,null,null,null,null,null,null,null,null,null,null,null,null,null,null,null,null,null,null,null,null,null,null,null,null,null,null,null,null,0,0,0,0,0,0,0,0,0]
[null,null,null,null,null,null,null,null,null,null,null,null,null,null,null,null,null,null,null,null,null,null,null,null,null,null,null,null,null,null,null,null,null,null,null,null,null,null,null,null,null,null,null,null,null,null,null,null,null,null,null,null,null,null,null,null,null,null,null,null,null,null,null,null,null,null,null,null,null,null,null,null,null,null,null,null,null,null,null,null,null,null,null,null,null,null,null,null,null,null,null,null,null,null,null,null,null,null,null,null,null,null,null,null,null,null,null,null,null,null,0,0,0,0,0,0,0,0,0]
[null,null,null,null,null,null,null,null,null,null,null,null,null,null,null,null,null,null,null,null,null,null,null,null,null,null,null,null,null,null,null,null,null,null,null,null,null,null,null,null,null,null,null,null,null,null,null,null,null,null,null,null,null,null,null,null,null,null,null,null,null,null,null,null,null,null,null,null,null,null,null,null,null,null,null,null,null,null,null,null,null,null,null,null,null,null,null,null,null,null,null,null,null,null,null,null,null,null,null,null,null,null,null,null,null,null,null,null,null,null,0,0,0,0,0,0,0,0,0]
[null,null,null,null,null,null,null,null,null,null,null,null,null,null,null,null,null,null,null,null,null,null,null,null,null,null,null,null,null,null,null,null,null,null,null,null,null,null,null,null,null,null,null,null,null,null,null,null,null,null,null,null,null,null,null,null,null,null,null,null,null,null,null,null,null,null,null,null,null,null,null,null,null,null,null,null,null,null,null,null,null,null,null,null,null,null,null,null,null,null,null,null,null,null,null,null,null,null,null,null,null,null,null,null,null,null,null,null,null,null,0,0,0,0,0,0,0,0,0]
[null,null,null,null,null,null,null,null,null,null,null,null,null,null,null,null,null,null,null,null,null,null,null,null,null,null,null,null,null,null,null,null,null,null,null,null,null,null,null,null,null,null,null,null,null,null,null,null,null,null,null,null,null,null,null,null,null,null,null,null,null,null,null,null,null,null,null,null,null,null,null,null,null,null,null,null,null,null,null,null,null,null,null,null,null,null,null,null,null,null,null,null,null,null,null,null,null,null,null,null,null,null,null,null,null,null,null,null,null,null,0,0,0,0,0,0,0,0,0]
[null,null,null,null,null,null,null,null,null,null,null,null,null,null,null,null,null,null,null,null,null,null,null,null,null,null,null,null,null,null,null,null,null,null,null,null,null,null,null,null,null,null,null,null,null,null,null,null,null,null,null,null,null,null,null,null,null,null,null,null,null,null,null,null,null,null,null,null,null,null,null,null,null,null,null,null,null,null,null,null,null,null,null,null,null,null,null,null,null,null,null,null,null,null,null,null,null,null,null,null,null,null,null,null,null,null,null,null,null,null,0,0,0,0,0,0,0,0,0]
[null,null,null,null,null,null,null,null,null,null,null,null,null,null,null,null,null,null,null,null,null,null,null,null,null,null,null,null,null,null,null,null,null,null,null,null,null,null,null,null,null,null,null,null,null,null,null,null,null,null,null,null,null,null,null,null,null,null,null,null,null,null,null,null,null,null,null,null,null,null,null,null,null,null,null,null,null,null,null,null,null,null,null,null,null,null,null,null,null,null,null,null,null,null,null,null,null,null,null,null,null,null,null,null,null,null,null,null,null,null,0,0,0,0,0,0,0,0,0]
[null,null,null,null,null,null,null,null,null,null,null,null,null,null,null,null,null,null,null,null,null,null,null,null,null,null,null,null,null,null,null,null,null,null,null,null,null,null,null,null,null,null,null,null,null,null,null,null,null,null,null,null,null,null,null,null,null,null,null,null,null,null,null,null,null,null,null,null,null,null,null,null,null,null,null,null,null,null,null,null,null,null,null,null,null,null,null,null,null,null,null,null,null,null,null,null,null,null,null,null,null,null,null,null,null,null,null,null,null,null,0,0,0,0,0,0,0,0,0]
[null,null,null,null,null,null,null,null,null,null,null,null,null,null,null,null,null,null,null,null,null,null,null,null,null,null,null,null,null,null,null,null,null,null,null,null,null,null,null,null,null,null,null,null,null,null,null,null,null,null,null,null,null,null,null,null,null,null,null,null,null,null,null,null,null,null,null,null,null,null,null,null,null,null,null,null,null,null,null,null,null,null,null,null,null,null,null,null,null,null,null,null,null,null,null,null,null,null,null,null,null,null,null,null,null,null,null,null,null,null,{"$f":"SUM(C97,L97,U97,AD97,AM97,AV97,BE97,BN97,BW97,CF97,CO97,CX97)","v":0},{"$f":"SUM(D97,M97,V97,AE97,AN97,AW97,BF97,BO97,BX97,CG97,CP97,CY97)","v":0},{"$f":"SUM(E97,N97,W97,AF97,AO97,AX97,BG97,BP97,BY97,CH97,CQ97,CZ97)","v":0},{"$f":"SUM(F97,O97,X97,AG97,AP97,AY97,BH97,BQ97,BZ97,CI97,CR97,DA97)","v":0},{"$f":"SUM(G97,P97,Y97,AH97,AQ97,AZ97,BI97,BR97,CA97,CJ97,CS97,DB97)","v":0},{"$f":"SUM(H97,Q97,Z97,AI97,AR97,BA97,BJ97,BS97,CB97,CK97,CT97,DC97)","v":0},{"$f":"SUM(I97,R97,AA97,AJ97,AS97,BB97,BK97,BT97,CC97,CL97,CU97,DD97)","v":0},{"$f":"SUM(J97,S97,AB97,AK97,AT97,BC97,BL97,BU97,CD97,CM97,CV97,DE97)","v":0},{"$f":"SUM(K97,T97,AC97,AL97,AU97,BD97,BM97,BV97,CE97,CN97,CW97,DF97)","v":0}]